Workbook

Sheet LargeGraphs

Sheet SHELLCALC
B1: ShellCalc© v4.1.2 | F1: Developed by John Harradine, Manly, Queensland, Australia Additions by Tom Smith, Davas Ltd, UK - effective 21 July 2010. See http://www.jpyro.com/wp?p=23 for more details | P1: Size | Q1: Terrrain Categories
P2: ½" (13mm) | Q2: 2
P3: 1" (25mm) | Q3: 3
B4: Input | F4: Output | P4: 10" (250mm) | Q4: None
B5: Units | C5: Metric | F5: Max Downrange Carry | G5: =IF(is_imp,Calculations!N7/0.305,Calculations!N7) -> 47.97423539 | H5: =IF(is_imp,"ft","m") -> m | P5: 1½" (38mm)
B6: Type | C6: Comets | F6: Max Height (from Ground Level) | G6: =IF(is_imp,Calculations!N8/0.305,Calculations!N8) -> 140 | H6: =IF(is_imp,"ft","m") -> m | P6: 12" (300mm)
B7: =IF(is_shell, "Shell Diameter","Comet Diameter") -> Comet Diameter | C7: 1¼" (30mm) | F7: Max Crossrange Carry | G7: =IF(is_imp,Calculations!N9/0.305,Calculations!N9) -> 1.058647225e-15 | H7: =IF(is_imp,"ft","m") -> m | P7: 2" (50mm) | Q7: Comet Choices
B8: =IF(is_comet,"Roman Candle Angle","Mortar Angle") -> Roman Candle Angle | C8: 120 | D8: ° from vertical | F8: =IF(is_shell,"Approx Burst Diameter","") ->  | G8: =IF(is_shell,+Calculations!N18*2,0) -> 0 | H8: =IF(is_shell,IF(is_imp,"ft","m"),"") ->  | P8: 2½" (63mm) | Q8: C
B9: Muzzle Velocity | D9: =IF(is_imp,"ft/s - if known","m/s - if known") -> m/s - if known | F9: Ascent Time | G9: =IF(is_shell,Calculations!N5,"") ->  | H9: s | P9: 3" (75mm) | Q9: S
B10: =IF(is_shell,"Fuse Delay","Comet Burning Time") -> Comet Burning Time | C10: 3 | D10: s - if known | F10: =IF(is_shell,"Burst Time","Effect Duration") -> Effect Duration | G10: =IF(Fuse_Delay>0,Fuse_Delay,VLOOKUP(C7,shell_data,7)) -> 3 | H10: s | P10: 4" (100mm)
B11: =IF(is_shell,"Shell Mass","Comet Mass") -> Comet Mass | D11: =IF(is_imp,"lb - if known","g - if known") -> g - if known | F11: Burst Distance (from firing point) | G11: =+Calculations!N10 -> 47.44105001 | H11: m | P11: 5" (125mm) | Q11: Unit Choices
B12: Tumbling/Mortar Drift | C12: None | F12: Burst Height (from Ground Level) | G12: =IF(is_imp,Calculations!N12/0.305,Calculations!N12) -> 87.34010044 | H12: m | P12: 6" (150mm) | Q12: I
B13: Wind Speed | C13: 10 | D13: =IF(is_imp,"kts","km/h") -> km/h | P13: 7" (175mm) | Q13: M
B14: Relative Wind Direction | C14: 180 | D14: degrees | P14: 8" (200mm)
B15: Elevation of Launch Site | C15: 300 | D15: =IF(is_imp,"ft AMSL","m AMSL") -> m AMSL | F15: =IF(is_comet,"Time at All Burnt","Max Flight Time (if shell does not burst)") -> Time at All Burnt | G15: =IF(is_comet,Calculations!$N$14,Calculations!N6) -> 3 | H15: s
B16: Height of launch | C16: 140 | D16: m from ground level | F16: Muzzle Velocity (Calculated) | G16: =+Calculations!B7 -> 90 | H16: =IF(is_imp,"ft/s","m/s") -> m/s
B17: Terrain Category | C17: 2 | D17: (refer AS1170.2) | F17: =IF(is_shell,"Shell Mass","Comet Mass") -> Comet Mass | G17: =IF(C11="",IF(is_imp,Calculations!B19/0.454,Calculations!B19*1000),SHELLCALC!C11) -> 15.70703477 | H17: =IF(is_imp,"lb","g") -> g

Sheet Revisions (hidden)
A1: Revision Log
I2: Current Version | K2: =+version -> ShellCalc© v4.1.2
A4: 3.1 | B4: 2000 | C4: JH | D4: original progam
A5: 3.2 | B5: 2005 | C5: TS | D5: incorporates shell bursts
A6: 4.1 | B6: 2010-07-21 | C6: TS | D6: allows firing above ground level
A7: 4.1.1 | B7: 2010-07-22 | C7: TS | D7: more diameters
A8: 4.1.2 | B8: 2010-07-23 | C8: TS | D8: Shell data inc Vo from Russell's book

Sheet About
B2: =+"About "&version -> About ShellCalc© v4.1.2
B4: SHELLCALC© is a freeware program designed to assist:
B5: M fireworks operators to plan a display, especially where a risk or hazard assessment is required;
B6: M fireworks regulators to develop safe distances and establish risk regimes for fireworks displays;
B7: M enforcement and investigative agencies to predict possible outcomes of "near misses", or to confirm actual incident data, particularly for presentation in court or in investigation reports;
B8: M fireworks testers, to establish a safe template for test firings; and
B9: M fireworks manufacturers, to establish safe distances for their products and predict the effect of variable fuse delay times on burst height.
B10: SHELLCALC© is a freeware program and is designed to run on Microsoft® Excel 2007 or later - limited functionality may be available in previous versions of Excel.
B11: Copies of this program and updates may be obtained directly from the Journal of Pyrotechnics Web-site - click link below
B12: http://www.jpyro.com/wp/?p=23

Sheet Calculations (hidden)
A1: SHELLCALC v4.1 | S1: Burst Calculations
A2: 2010-07-21 | S2: Inc | T2: cos | V2: x val | W2: y1 val | X2: y2 val | Y2: z1 val | Z2: z2 val
S3: -10 | T3: =$N$18*S3/10 -> 0 | U3: =+SQRT(($N$18*$N$18)-(T3*T3)) -> 0 | V3: =IF($B$24="s",$N$10+$N$18*S3/10,0) -> 0 | W3: =+$N$11-U3 -> 1.058647225e-15 | X3: =+$N$11+U3 -> 1.058647225e-15 | Y3: =+$N$12-U3 -> 87.34010044 | Z3: =+$N$12+U3 -> 87.34010044
S4: -9 | T4: =$N$18*S4/10 -> 0 | U4: =+SQRT(($N$18*$N$18)-(T4*T4)) -> 0 | V4: =IF($B$24="s",$N$10+$N$18*S4/10,0) -> 0 | W4: =+$N$11-U4 -> 1.058647225e-15 | X4: =+$N$11+U4 -> 1.058647225e-15 | Y4: =+$N$12-U4 -> 87.34010044 | Z4: =+$N$12+U4 -> 87.34010044 | AD4: drift
M5: Ascent Time | N5: =MAX(T30:T259) ->  | S5: -8 | T5: 0 | U5: 0 | V5: 0 | W5: 1.058647225e-15 | X5: 1.058647225e-15 | Y5: 87.34010044 | Z5: 87.34010044 | AC5: None | AD5: 0
A6: Shell Diameter | B6: =SHELLCALC!C7 -> 1¼" (30mm) | M6: Flight Time | N6: =MAX(S31:S260) -> 22.8 | S6: -7 | T6: 0 | U6: 0 | V6: 0 | W6: 1.058647225e-15 | X6: 1.058647225e-15 | Y6: 87.34010044 | Z6: 87.34010044 | AC6: Minor | AD6: 2
A7: V0= | B7: =IF(is_imp,E7*0.305,E7) -> 90 | C7: 100-120 | E7: =IF(muzzle_velocity=0,VLOOKUP(SHELLCALC!C7,shell_data1,8),SHELLCALC!C9) -> 90 | M7: Max Downrange Carry | N7: =MAX(M30:M259) -> 47.97423539 | S7: -6 | T7: 0 | U7: 0 | V7: 0 | W7: 1.058647225e-15 | X7: 1.058647225e-15 | Y7: 87.34010044 | Z7: 87.34010044 | AC7: Typical | AD7: 4
A8: Elevation | B8: =90-B11 -> -30 | M8: Max Height | N8: =MAX(P30:P259) -> 140 | S8: -5 | T8: 0 | U8: 0 | V8: 0 | W8: 1.058647225e-15 | X8: 1.058647225e-15 | Y8: 87.34010044 | Z8: 87.34010044 | AC8: Major | AD8: 6
A9: Wind Speed (km/h) | B9: =IF(is_imp,SHELLCALC!C13/1.944,SHELLCALC!C13) -> 10 | M9: Max Crossrange Carry | N9: =MAX(O30:O259) -> 1.058647225e-15 | S9: -4 | T9: 0 | U9: 0 | V9: 0 | W9: 1.058647225e-15 | X9: 1.058647225e-15 | Y9: 87.34010044 | Z9: 87.34010044 | AC9: Extreme | AD9: 8
A10: Relative Wind Direction [degrees] | B10: =SHELLCALC!C14 -> 180 | C10: 0 = tailwind, 180 = headwind, +ve = from right, -ve = from left | M10: Burst x | N10: =IF(is_shell,SUM(U31:U259),MIN(Y31:Y259)+MAX(Y31:Y259)) -> 47.44105001 | P10: =MAX(Y31:Y259) -> 47.44105001 | Q10: =MIN(Y31:Y259) -> 0 | S10: -3 | T10: 0 | U10: 0 | V10: 0 | W10: 1.058647225e-15 | X10: 1.058647225e-15 | Y10: 87.34010044 | Z10: 87.34010044
A11: Mortar Angle from Vertical | B11: =+D11+D15 -> 120 | D11: =SHELLCALC!C8 -> 120 | M11: Burst y | N11: =IF(is_shell,SUM(V31:V259),MIN(Z31:Z259)+MAX(Z31:Z259)) -> 1.058647225e-15 | P11: =MAX(Z31:Z259) -> 1.058647225e-15 | Q11: =MIN(Z31:Z259) -> 0 | S11: -2 | T11: 0 | U11: 0 | V11: 0 | W11: 1.058647225e-15 | X11: 1.058647225e-15 | Y11: 87.34010044 | Z11: 87.34010044
A12: Height of Mortar AMSL | B12: =IF(is_imp,SHELLCALC!C15*0.305,SHELLCALC!C15) -> 300 | M12: Burst z | N12: =IF(is_shell,SUM(W31:W259),MAX(AA31:AA259)) -> 87.34010044 | P12: =MAX(AA31:AA259) -> 87.34010044 | Q12: =MIN(Z31:Z259) -> 0 | S12: -1 | T12: 0 | U12: 0 | V12: 0 | W12: 1.058647225e-15 | X12: 1.058647225e-15 | Y12: 87.34010044 | Z12: 87.34010044
A13: Terrain Category | B13: =SHELLCALC!C17 -> 2 | M13: Height all Burnt | S13: 0 | T13: 0 | U13: 0 | V13: 0 | W13: 1.058647225e-15 | X13: 1.058647225e-15 | Y13: 87.34010044 | Z13: 87.34010044
A14: Fuse Delay | B14: =IF(Fuse_Delay="",D14,Fuse_Delay) -> 3 | D14: =VLOOKUP(B6,AF32:AL46,7,FALSE) -> 3.3 | M14: Time all burnt | N14: =MIN(AB31:AB258)-0.1 -> 3 | S14: 1 | T14: 0 | U14: 0 | V14: 0 | W14: 1.058647225e-15 | X14: 1.058647225e-15 | Y14: 87.34010044 | Z14: 87.34010044
A15: drift | B15: =+SHELLCALC!C12 -> None | D15: =IF(B15="extreme",AD9,IF(B15="major",AD8,IF(B15="typical",AD7,IF(B15="minor",AD6,AD5)))) -> 0 | S15: 2 | T15: 0 | U15: 0 | V15: 0 | W15: 1.058647225e-15 | X15: 1.058647225e-15 | Y15: 87.34010044 | Z15: 87.34010044
A16: height of launch | B16: =+SHELLCALC!C16 -> 140 | M16: raw diam | N16: =2*((B18*0.5)) -> 30 | S16: 3 | T16: 0 | U16: 0 | V16: 0 | W16: 1.058647225e-15 | X16: 1.058647225e-15 | Y16: 87.34010044 | Z16: 87.34010044
A17: CD | B17: =VLOOKUP(B6,AF32:AJ46,5,FALSE) -> 0.6150497211 | M17: diam | N17: =IF(is_imp,N16*N20,N16) -> 30 | S17: 4 | T17: 0 | U17: 0 | V17: 0 | W17: 1.058647225e-15 | X17: 1.058647225e-15 | Y17: 87.34010044 | Z17: 87.34010044
A18: Diameter | B18: =VLOOKUP(B6,AF32:AG46,2,FALSE) -> 30 | M18: rad | N18: =IF(B24="C",0,N17/2) -> 0 | S18: 5 | T18: 0 | U18: 0 | V18: 0 | W18: 1.058647225e-15 | X18: 1.058647225e-15 | Y18: 87.34010044 | Z18: 87.34010044
A19: Mass | B19: =IF(SHELLCALC!C11="",VLOOKUP(B6,AF32:AH46,3,FALSE),IF(is_imp="I",SHELLCALC!C11/2.205,SHELLCALC!C11/1000)) -> 0.01570703477 | S19: 6 | T19: 0 | U19: 0 | V19: 0 | W19: 1.058647225e-15 | X19: 1.058647225e-15 | Y19: 87.34010044 | Z19: 87.34010044
A20: Effective area | B20: =3.14159265*(B18/2000)^2 -> 0.0007068583463 | M20: met_imp | N20: =1/(2.54*3) -> 0.1312335958 | S20: 7 | T20: 0 | U20: 0 | V20: 0 | W20: 1.058647225e-15 | X20: 1.058647225e-15 | Y20: 87.34010044 | Z20: 87.34010044
A21: Grav Constant | B21: 9.805 | S21: 8 | T21: 0 | U21: 0 | V21: 0 | W21: 1.058647225e-15 | X21: 1.058647225e-15 | Y21: 87.34010044 | Z21: 87.34010044
A22: Time increment | B22: 0.1 | L22: Max offset | S22: 9 | T22: 0 | U22: 0 | V22: 0 | W22: 1.058647225e-15 | X22: 1.058647225e-15 | Y22: 87.34010044 | Z22: 87.34010044
A23: Wind Speed [m/s] | B23: =B9*1000/3600 -> 2.777777778 | S23: 10 | T23: 0 | U23: 0 | V23: 0 | W23: 1.058647225e-15 | X23: 1.058647225e-15 | Y23: 87.34010044 | Z23: 87.34010044
A24: Comet? | B24: =LEFT(D24,1) -> C | D24: =SHELLCALC!C6 -> Comets | G24: =IF(B24="c",1,0) -> 1 | H24: =IF(B24="s",1,0) -> 0 | O24: Param 1 | P24: 0.01
A25: Imperial? | B25: =LEFT(D25,1) -> M | D25: =SHELLCALC!C5 -> Metric | G25: =IF(B25="i",1,0) -> 0 | H25: =IF(B25="m",1,0) -> 1 | V25: 50 | W25: 0 | X25: 0 | Y25: 0 | Z25: 0
A26: Linear Burning Rate | B26: =IF(is_comet,IF(SHELLCALC!C10<>"",Calculations!B18/(6000*SHELLCALC!C10),0.00143),0) -> 0.001666666667
A27: Trajectory Calculations
A28: t | B28: xdot | C28: ydot | D28: zdot | E28: Corrected Wind | F28: wxdot | G28: wydot | H28: rho | I28: V | J28: xdotdot | K28: ydotdot | L28: zdotdot | M28: x | N28: y | O28: ABS y | P28: z | Q28: Wind Direction | R28: Wind Direction | S28: Flight Time | T28: Ascent Time | U28: Burst x | V28: Burst y | W28: Burst z | X28: m | Y28: x all Burnt | Z28: y all Burnt | AA28: z all Burnt | AB28: Time all burnt | AC28: Effective Area
M29: 0 | N29: 0 | O29: 0 | P29: 0 | Q29: 0 | R29: 0
M30: =IF(X30>0,IF(P29<=2,M29,M29+(B31*$B$22)),M29) -> 0 | N30: 0 | O30: =ABS(N30) -> 0 | P30: =+B16 -> 140 | Q30: 0 | R30: 0 | AG30: Aerial Shell/Comet Data | AP30: Terrrain Categories | AR30: Drift
A31: 0 | B31: =$B$7*COS(RADIANS($B$8)) -> 77.94228634 | C31: 0 | D31: =$B$7*SIN(RADIANS($B$8)) -> -45 | E31: =IF($B$13=2,$B$23*((0.1036*LN(ABS(P30+1)))+0.8731),IF($B$13=3,$B$23*((0.139*LN(ABS(P30+1)))+0.7503),$B$23)) -> 3.849420902 | F31: =E31*COS(RADIANS($B$10)) -> -3.849420902 | G31: =E31*SIN(RADIANS($B$10)) -> 4.71611207e-16 | H31: =1.22*EXP(-0.0001065*(P30+$B$12)) -> 1.164149595 | I31: =SQRT(((B31-F31)^2)+((C31-G31)^2)+(D31^2)) -> 93.3535397 | J31: =-0.5*H31*I31*AC31*$B$17*(B31-F31)/X31 -> -146.9628871 | K31: =-0.5*H31*I31*AC31*$B$17*(C31-G31)/X31 -> 8.47388408e-16 | L31: =(-0.5*H31*AC31*I31*$B$17*D31/X31)-$B$21 -> 71.05075108 | M31: =M30+(B32*B22) -> 6.324599763 | N31: =N30+(C32*B22) -> 8.47388408e-18 | O31: =ABS(N31) -> 8.47388408e-18 | P31: =P30+(D32*$B$22) -> 136.2105075 | Q31: =A32*$B$23*SIN(RADIANS($B$10)) -> 3.403190153e-17 | R31: =A32*$B$23*COS(RADIANS($B$10)) -> -0.2777777778 | S31: =A32 -> 0.1 | T31: =A32 -> 0.1 | U31: =IF(ROUND(A31*10,3)=$B$14*10,M31,0) -> 0 | V31: =IF(ROUND(A31*10,3)=$B$14*10,N31,0) -> 0 | W31: =IF(ROUND(A31*10,3)=$B$14*10,P31,0) -> 0 | X31: =IF($B$24="C",IF((3.14159265*1860/4)*((0.001*$B$18)-(2*$B$26*A31))^2*((0.33333*0.001*$B$18)-(2*$B$26*A31))<0,(3.14159265*1860/4)*((0.001*$B$18)-(2*$B$26*A31))^2*((0.33333*0.001*$B$18)-(2*$B$26*A31)),(3.14159265*1860/4)*((0.001*$B$18)-(2*$B$26*A31))^2*((0.33333*0.001*$B$18)-(2*$B$26*A31))),$B$19) -> 0.01314743376 | Y31: =IF(X31<=0,M31,0) -> 0 | Z31: =IF(X31<=0,N31,0) -> 0 | AA31: =IF(X31<=0,P31,0) -> 0 | AB31: =IF(X31<=0,S31,3000) -> 3000 | AC31: =IF($B$24="S",$B$20,3.1415*(($B$18*0.0005)-($B$26*A31))^2) -> 0.0007068375 | AF31: Size | AG31: Size | AH31: Mass | AI31: K=CD rho/2g | AJ31: CD | AK31: LOG10(CD) | AL31: delay | AM31: Vo (m/s) | AP31: 2 | AR31: None
A32: =A31+$B$22 -> 0.1 | B32: =B31+(J31*$B$22) -> 63.24599763 | C32: =C31+(K31*$B$22) -> 8.47388408e-17 | D32: =D31+(L31*$B$22) -> -37.89492489 | E32: =IF($B$13=2,$B$23*((0.1036*LN(ABS(P31+1)))+0.8731),IF($B$13=3,$B$23*((0.139*LN(ABS(P31+1)))+0.7503),$B$23)) -> 3.841580801 | F32: =E32*COS(RADIANS($B$10)) -> -3.841580801 | G32: =E32*SIN(RADIANS($B$10)) -> 4.706506783e-16 | H32: =1.22*EXP(-0.0001065*(P31+$B$12)) -> 1.164619518 | I32: =SQRT(((B32-F32)^2)+((C32-G32)^2)+(D32^2)) -> 77.05042837 | J32: =-0.5*H32*I32*AC32*$B$17*(B32-F32)/X32 -> -102.9635399 | K32: =-0.5*H32*I32*AC32*$B$17*(C32-G32)/X32 -> 5.922832484e-16 | L32: =(-0.5*H32*AC32*I32*$B$17*D32/X32)-$B$21 -> 48.35473244 | M32: =IF(X32>0,IF(P31<=Param_1,M31,M31+(B33*$B$22)),M31) -> 11.61956413 | N32: =IF(X32>0,IF(P31<=Param_1,N31,N31+(C33*$B$22)),N31) -> 2.287060064e-17 | O32: 2.287060064e-17 | P32: =IF(X32>0,IF(P31<Param_1,P31,P31+(D33*$B$22)),P31) -> 132.9045623 | Q32: =IF(P31<Param_1,Q31,A33*$B$23*SIN(RADIANS($B$10))) -> 6.806380305e-17 | R32: =IF(P31<Param_1,R31,A33*$B$23*COS(RADIANS($B$10))) -> -0.5555555556 | S32: =IF(P31<Param_1,S31,A33) -> 0.2 | T32: =IF(D32<0,T31,A33) -> 0.1 | U32: =IF(ROUND(A32*10,3)=$B$14*10,M32,0) -> 0 | V32: =IF(ROUND(A32*10,3)=$B$14*10,N32,0) -> 0 | W32: =IF(ROUND(A32*10,3)=$B$14*10,P32,0) -> 0 | X32: 0.01242832437 | Y32: =IF(X32<=0,M32,0) -> 0 | Z32: =IF(X32<=0,N32,0) -> 0 | AA32: 0 | AB32: =IF(X32<=0,S32,3000) -> 3000 | AC32: =IF($B$24="S",$B$20,3.1415*(($B$18*0.0005)-($B$26*A32))^2) -> 0.0006912172639 | AF32: ½" (13mm) | AG32: 13 | AH32: =205.25*((AG32/1000)^2.7029) -> 0.001638553601 | AJ32: =(-0.0921*(LN(AG32)))+0.9283 -> 0.6920681642 | AK32: =AG32^0.2 -> 1.670277652 | AL32: 2.3 | AM32: 90 | AP32: 3 | AR32: Minor
A33: 0.2 | B33: =B32+(J32*$B$22) -> 52.94964364 | C33: 1.439671656e-16 | D33: =D32+(L32*$B$22) -> -33.05945165 | E33: 3.834562197 | F33: =E33*COS(RADIANS($B$10)) -> -3.834562197 | G33: 4.697907951e-16 | H33: 1.165029633 | I33: =SQRT(((B33-F33)^2)+((C33-G33)^2)+(D33^2)) -> 65.70672245 | J33: =-0.5*H33*I33*AC33*$B$17*(B33-F33)/X33 -> -77.00105707 | K33: =-0.5*H33*I33*AC33*$B$17*(C33-G33)/X33 -> 4.418264466e-16 | L33: =(-0.5*H33*AC33*I33*$B$17*D33/X33)-$B$21 -> 35.02459101 | M33: 16.14451792 | N33: 4.168558167e-17 | O33: 4.168558167e-17 | P33: 129.9488631 | Q33: 1.020957046e-16 | R33: -0.8333333333 | S33: 0.3 | T33: =IF(D33<0,T32,A34) -> 0.1 | U33: =IF(ROUND(A33*10,3)=$B$14*10,M33,0) -> 0 | V33: =IF(ROUND(A33*10,3)=$B$14*10,N33,0) -> 0 | W33: =IF(ROUND(A33*10,3)=$B$14*10,P33,0) -> 0 | X33: 0.01173161449 | Y33: 0 | Z33: 0 | AA33: 0 | AB33: 3000 | AC33: 0.0006757715556 | AF33: 1" (25mm) | AG33: 25 | AH33: =205.25*((AG33/1000)^2.7029) -> 0.00959566804 | AJ33: 0.6318415365 | AK33: =AG33^0.2 -> 1.903653939 | AL33: 3.1 | AM33: 90 | AP33: None | AR33: Typical
A34: 0.3 | B34: 45.24953793 | C34: 1.881498103e-16 | D34: -29.55699255 | E34: 3.828138871 | F34: -3.828138871 | G34: 4.690038423e-16 | H34: 1.165396421 | I34: 57.29078607 | J34: -60.1948382 | K34: 3.444735798e-16 | L34: 26.44729433 | M34: 20.06752333 | N34: 6.39452985e-17 | O34: 6.39452985e-17 | P34: 127.2576368 | Q34: 1.361276061e-16 | R34: -1.111111111 | S34: 0.4 | T34: 0.1 | U34: 0 | V34: 0 | W34: 0 | X34: 0.01105697951 | Y34: 0 | Z34: 0 | AA34: 0 | AB34: 3000 | AC34: 0.000660500375 | AF34: 1¼" (30mm) | AG34: 30 | AH34: 0.01570703477 | AJ34: 0.6150497211 | AK34: =AG34^0.2 -> 1.974350486 | AL34: 3.3 | AM34: 90 | AR34: Major
A35: 0.4 | B35: 39.23005411 | C35: 2.225971683e-16 | D35: -26.91226312 | E35: 3.822162918 | F35: -3.822162918 | G35: 4.682716994e-16 | H35: 1.16573049 | I35: 50.7716781 | J35: -48.60966076 | K35: 2.773877035e-16 | L35: 20.58126279 | M35: 23.50443213 | N35: 8.897889237e-17 | O35: 8.897889237e-17 | P35: 124.7722231 | Q35: 1.701595076e-16 | R35: -1.388888889 | S35: 0.5 | T35: 0.1 | U35: 0 | V35: 0 | W35: 0 | X35: 0.01040409479 | Y35: 0 | Z35: 0 | AA35: 0 | AB35: 3000 | AC35: 0.0006454037222 | AF35: 1½" (38mm) | AG35: 38 | AH35: 0.02975639048 | AJ35: 0.5932783147 | AK35: 2.069935054 | AL35: 3.6 | AM35: 90 | AR35: Extreme
A36: 0.5 | B36: 34.36908803 | C36: 2.503359386e-16 | D36: -24.85413684 | E36: 3.816531536 | F36: -3.816531536 | G36: 4.675817714e-16 | H36: 1.166039096 | I36: 45.56171265 | J36: -40.24889203 | K36: 2.289842136e-16 | L36: 16.39207317 | M36: 26.53885202 | N36: 1.163023284e-16 | O36: 1.163023284e-16 | P36: 122.4507301 | Q36: 2.041914092e-16 | R36: -1.666666667 | S36: 0.6 | T36: 0.1 | U36: 0 | V36: 0 | W36: 0 | X36: 0.009772635696 | Y36: 0 | Z36: 0 | AA36: 0 | AB36: 3000 | AC36: 0.0006304815972 | AF36: 1¾" (45mm) | AG36: 45 | AH36: 0.04699495838 | AJ36: 0.5777063847 | AK36: 2.141127368 | AL36: 3.8 | AM36: 90
A37: 0.6 | B37: 30.34419883 | C37: 2.7323436e-16 | D37: -23.21492952 | E37: 3.811170124 | F37: -3.811170124 | G37: 4.669249189e-16 | H37: 1.166327422 | I37: 41.29796824 | J37: -33.99993393 | K37: 1.928091075e-16 | L37: 13.30428249 | M37: 29.23327256 | N37: 1.455538554e-16 | O37: 1.455538554e-16 | P37: 120.26228 | Q37: 2.382233107e-16 | R37: -1.944444444 | S37: 0.7 | T37: 0.1 | U37: 0 | V37: 0 | W37: 0 | X37: 0.009162277602 | Y37: 0 | Z37: 0 | AA37: 0 | AB37: 3000 | AC37: 0.000615734 | AF37: 2" (50mm) | AG37: 50 | AH37: =205.25*((AG37/1000)^2.7029) -> 0.06247829804 | AI37: 0.032 | AJ37: =(-0.0921*(LN(AG37)))+0.9283 -> 0.5680026812 | AK37: =AG37^0.2 -> 2.186724148 | AL37: 4 | AM37: 93 | AR37: Metric
A38: 0.7 | B38: 26.94420544 | C38: 2.925152707e-16 | D38: -21.88450127 | E38: 3.806022837 | F38: -3.806022837 | G38: 4.662942998e-16 | H38: 1.166599289 | I38: 37.74265405 | J38: -29.19819799 | K38: 1.65008027e-16 | L38: 10.97494334 | M38: 31.63571112 | N38: 1.764554628e-16 | O38: 1.764554628e-16 | P38: 118.1835793 | Q38: 2.722552122e-16 | R38: -2.222222222 | S38: 0.8 | T38: 0.1 | U38: 0 | V38: 0 | W38: 0 | X38: 0.008572695875 | Y38: 0 | Z38: 0 | AA38: 0 | AB38: 3000 | AC38: 0.0006011609306 | AF38: 2½" (63mm) | AG38: 63 | AH38: 0.1166865332 | AI38: 0.032 | AJ38: 0.5467172917 | AK38: 2.290172049 | AL38: 4.4 | AM38: 100 | AR38: Imperial
A39: 0.8 | B39: 24.02438564 | C39: 3.090160734e-16 | D39: -20.78700694 | E39: 3.801046924 | F39: -3.801046924 | G39: 4.656846766e-16 | H39: 1.166857581 | I39: 34.73261226 | J39: -25.42472117 | K39: 1.43151613e-16 | L39: 9.18855398 | M39: 33.78390248 | N39: 2.087885863e-16 | O39: 2.087885863e-16 | P39: 116.1967642 | Q39: 3.062871137e-16 | R39: -2.5 | S39: 0.9 | T39: 0.1 | U39: 0 | V39: 0 | W39: 0 | X39: 0.008003565883 | Y39: 0 | Z39: 0 | AA39: 0 | AB39: 3000 | AC39: 0.0005867623889 | AF39: 3" (75mm) | AG39: 75 | AH39: 0.18693312 | AI39: 0.0275 | AJ39: 0.5306593447 | AK39: 2.37144061 | AL39: 4.7 | AM39: 105
A40: 0.9 | B40: 21.48191352 | C40: 3.233312347e-16 | D40: -19.86815154 | E40: 3.796209172 | F40: -3.796209172 | G40: 4.650919802e-16 | H40: 1.16710451 | I40: 32.1516241 | J40: -22.40371929 | K40: 1.256409737e-16 | L40: 7.803921961 | M40: 35.70805664 | N40: 2.423781195e-16 | O40: 2.423781195e-16 | P40: 114.2879882 | Q40: 3.403190153e-16 | R40: -2.777777778 | S40: 1 | T40: 0.1 | U40: 0 | V40: 0 | W40: 0 | X40: 0.007454562996 | Y40: 0 | Z40: 0 | AA40: 0 | AB40: 3000 | AC40: 0.000572538375 | AF40: 4" (100mm) | AG40: 100 | AH40: 0.4068020809 | AI40: 0.0275 | AJ40: 0.5041638259 | AK40: 2.511886432 | AL40: 5.2 | AM40: 125
A41: 1 | B41: 19.24154159 | C41: 3.358953321e-16 | D41: -19.08775934 | E41: 3.791483567 | F41: -3.791483567 | G41: 4.645130234e-16 | H41: 1.167341788 | I41: 29.91425755 | J41: -19.94708757 | K41: 1.113856444e-16 | L41: 6.725403824 | M41: 37.43273992 | N41: 2.770815091e-16 | O41: 2.770815091e-16 | P41: 112.4464663 | Q41: 3.743509168e-16 | R41: -3.055555556 | S41: 1.1 | T41: 0.1 | U41: 0 | V41: 0 | W41: 0 | X41: 0.006925362582 | Y41: 0 | Z41: 0 | AA41: 0 | AB41: 3000 | AC41: 0.0005584888889 | AF41: 5" (125mm) | AG41: 125 | AH41: 0.7435689393 | AI41: 0.0275 | AJ41: 0.4836123048 | AK41: 2.626527804 | AL41: 5.6 | AM41: 128 | AR41: Shells
A42: 1.1 | B42: 17.24683283 | C42: 3.470338966e-16 | D42: -18.41521896 | E42: 3.786849717 | F42: -3.786849717 | G42: 4.63945308e-16 | H42: 1.167570752 | I42: 27.955967 | J42: -17.92264202 | K42: 9.96193306e-17 | L42: 5.886468976 | M42: 38.97819678 | N42: 3.127810921e-16 | O42: 3.127810921e-16 | P42: 110.6638091 | Q42: 4.083828183e-16 | R42: -3.333333333 | S42: 1.2 | T42: 0.1 | U42: 0 | V42: 0 | W42: 0 | X42: 0.00641564001 | Y42: 0 | Z42: 0 | AA42: 0 | AB42: 3000 | AC42: 0.0005446139306 | AF42: 6" (150mm) | AG42: 150 | AH42: 1.217139144 | AI42: 0.0295 | AJ42: 0.4668204894 | AK42: 2.724069927 | AL42: 5.9 | AM42: 130 | AR42: Comets
A43: 1.2 | B43: 15.45456863 | C43: 3.569958296e-16 | D43: -17.82657206 | E43: 3.782291775 | F43: -3.782291775 | G43: 4.633868924e-16 | H43: 1.16779244 | I43: 26.2267701 | J43: -16.23510598 | K43: 8.978960925e-17 | L43: 5.239881575 | M43: 40.36130259 | N43: 3.493785711e-16 | O43: 3.493785711e-16 | P43: 108.9335507 | Q43: 4.424147198e-16 | R43: -3.611111111 | S43: 1.3 | T43: 0.1 | U43: 0 | V43: 0 | W43: 0 | X43: 0.005925070649 | Y43: 0 | Z43: 0 | AA43: 0 | AB43: 3000 | AC43: 0.0005309135 | AF43: 7" (175mm) | AG43: 175 | AH43: 1.846250847 | AI43: 0.0275 | AJ43: 0.4526232118 | AK43: 2.809361392 | AL43: 6.2 | AM43: 130
A44: 1.3 | B44: 13.83105803 | C44: 3.659747905e-16 | D44: -17.3025839 | E44: 3.777797677 | F44: -3.777797677 | G44: 4.628362987e-16 | H44: 1.168007652 | I44: 24.68706563 | J44: -14.81428753 | K44: 8.148935153e-17 | L44: 4.751621803 | M44: 41.59626551 | N44: 3.867909437e-16 | O44: 3.867909437e-16 | P44: 107.2508086 | Q44: 4.764466214e-16 | R44: -3.888888889 | S44: 1.4 | T44: 0.1 | U44: 0 | V44: 0 | W44: 0 | X44: 0.005453329867 | Y44: 0 | Z44: 0 | AA44: 0 | AB44: 3000 | AC44: 0.0005173875972 | AF44: 8" (200mm) | AG44: 200 | AH44: 2.648726649 | AI44: 0.0275 | AJ44: 0.4403249705 | AK44: 2.885399812 | AL44: 6.5 | AM44: 132
A45: 1.4 | B45: 12.34962928 | C45: 3.741237257e-16 | D45: -16.82742172 | E45: 3.77335863 | F45: -3.77335863 | G45: 4.622924495e-16 | H45: 1.168216992 | I45: 23.30478193 | J45: -13.60748874 | K45: 7.441269094e-17 | L45: 4.397017203 | M45: 42.69515355 | N45: 4.249474432e-16 | O45: 4.249474432e-16 | P45: 105.6120366 | Q45: 5.104785229e-16 | R45: -4.166666667 | S45: 1.5 | T45: 0.1 | U45: 0 | V45: 0 | W45: 0 | X45: 0.005000093034 | Y45: 0 | Z45: 0 | AA45: 0 | AB45: 3000 | AC45: 0.0005040362222 | AF45: 10" (250mm) | AG45: 250 | AH45: 4.841447371 | AI45: 0.0235 | AJ45: 0.4197734495 | AK45: 3.017088168 | AL45: 6.9 | AM45: 134
A46: 1.5 | B46: 10.98888041 | C46: 3.815649948e-16 | D46: -16.38772 | E46: 3.768968747 | F46: -3.768968747 | G46: 4.617546237e-16 | H46: 1.168420897 | I46: 22.05337794 | J46: -12.57449819 | K46: 6.832596898e-17 | L46: 4.158237684 | M46: 43.66829661 | N46: 4.637872024e-16 | O46: 4.637872024e-16 | P46: 104.0148469 | Q46: 5.445104244e-16 | R46: -4.444444444 | S46: 1.6 | T46: 0.1 | U46: 0 | V46: 0 | W46: 0 | X46: 0.004565035517 | Y46: 0 | Z46: 0 | AA46: 0 | AB46: 3000 | AC46: 0.000490859375 | AF46: 12" (300mm) | AG46: 300 | AH46: 7.924907561 | AI46: 0.0265 | AJ46: 0.4029816341 | AK46: 3.129134645 | AL46: 7.3 | AM46: 136
A47: 1.6 | B47: 9.731430588 | C47: 3.883975917e-16 | D47: -15.97189624 | E47: 3.764624834 | F47: -3.764624834 | G47: 4.612224299e-16 | H47: 1.168619664 | I47: 20.91040366 | J47: -11.68421293 | K47: 6.304811954e-17 | L47: 4.022672649 | M47: 44.52459754 | N47: 5.032574427e-16 | O47: 5.032574427e-16 | P47: 102.457884 | Q47: 5.785423259e-16 | R47: -4.722222222 | S47: 1.7 | T47: 0.1 | U47: 0 | V47: 0 | W47: 0 | X47: 0.004147832686 | Y47: 0 | Z47: 0 | AA47: 0 | AB47: 3000 | AC47: 0.0004778570556
A48: 1.7 | B48: 8.563009296 | C48: 3.947024036e-16 | D48: -15.56962897 | E48: 3.760326261 | F48: -3.760326261 | G48: 4.606957908e-16 | H48: 1.168813456 | I48: 19.85643335 | J48: -10.91232073 | K48: 5.843718235e-17 | L48: 3.981915416 | M48: 45.27177526 | N48: 5.433120549e-16 | O48: 5.433120549e-16 | P48: 100.9407403 | Q48: 6.125742275e-16 | R48: -5 | S48: 1.8 | T48: 0.1 | U48: 0 | V48: 0 | W48: 0 | X48: 0.00374815991 | Y48: 0 | Z48: 0 | AA48: 0 | AB48: 3000 | AC48: 0.0004650292639
A49: 1.8 | B49: 7.471777223 | C49: 4.005461219e-16 | D49: -15.17143743 | E49: 3.756074935 | F49: -3.756074935 | G49: 4.601749404e-16 | H49: 1.169002323 | I49: 18.87424642 | J49: -10.23969509 | K49: 5.438091907e-17 | L49: 4.031207593 | M49: 45.91655604 | N49: 5.839104763e-16 | O49: 5.839104763e-16 | P49: 99.46390864 | Q49: 6.46606129e-16 | R49: -5.277777778 | S49: 1.9 | T49: 0.1 | U49: 0 | V49: 0 | W49: 0 | X49: 0.003365692557 | Y49: 0 | Z49: 0 | AA49: 0 | AB49: 3000 | AC49: 0.000452376
A50: 1.9 | B50: 6.447807714 | C50: 4.059842138e-16 | D50: -14.76831667 | E50: 3.751875359 | F50: -3.751875359 | G50: 4.596604299e-16 | H50: 1.169186201 | I50: 17.94816737 | J50: -9.651289915 | K50: 5.07902765e-17 | L50: 4.169287701 | M50: 46.46482391 | N50: 6.250168004e-16 | O50: 6.250168004e-16 | P50: 98.02876985 | Q50: 6.806380305e-16 | R50: -5.555555556 | S50: 2 | T50: 0.1 | U50: 0 | V50: 0 | W50: 0 | X50: 0.003000105996 | Y50: 0 | Z50: 0 | AA50: 0 | AB50: 3000 | AC50: 0.0004398972639 | AG50: = new or estimated values | AN50: =190*0.305 -> 57.95
A51: 2 | B51: 5.482678723 | C51: 4.110632414e-16 | D51: -14.3513879 | E51: 3.747734774 | F51: -3.747734774 | G51: 4.591531468e-16 | H51: 1.169364916 | I51: 17.06349519 | J51: -9.135408506 | K51: 4.759493503e-17 | L51: 4.398674747 | M51: 46.9217377 | N51: 6.665990739e-16 | O51: 6.665990739e-16 | P51: 96.63761781 | Q51: 7.14669932e-16 | R51: -5.833333333 | S51: 2.1 | T51: 0.1 | U51: 0 | V51: 0 | W51: 0 | X51: 0.002651075596 | Y51: 0 | Z51: 0 | AA51: 0 | AB51: 3000 | AC51: 0.0004275930556
A52: 2.1 | B52: 4.569137872 | C52: 4.158227349e-16 | D52: -13.91152042 | E52: 3.743663419 | F52: -3.743663419 | G52: 4.586543454e-16 | H52: 1.169538179 | I52: 16.20595773 | J52: -8.683287984 | K52: 4.474053878e-17 | L52: 4.72653202 | M52: 47.2918186 | N52: 7.086287528e-16 | O52: 7.086287528e-16 | P52: 95.29373109 | Q52: 7.487018336e-16 | R52: -6.111111111 | S52: 2.2 | T52: 0.1 | U52: 0 | V52: 0 | W52: 0 | X52: 0.002318276726 | Y52: 0 | Z52: 0 | AA52: 0 | AB52: 3000 | AC52: 0.000415463375
A53: 2.2 | B53: 3.700809074 | C53: 4.202967888e-16 | D53: -13.43886722 | E53: 3.739674926 | F53: -3.739674926 | G53: 4.581656958e-16 | H53: 1.16970558 | I53: 15.36111827 | J53: -8.289009049 | K53: 4.218753949e-17 | L53: 5.166457772 | M53: 47.57900942 | N53: 7.510803071e-16 | O53: 7.510803071e-16 | P53: 94.00150894 | Q53: 7.827337351e-16 | R53: -6.388888889 | S53: 2.3 | T53: 0.1 | U53: 0 | V53: 0 | W53: 0 | X53: 0.002001384753 | Y53: 0 | Z53: 0 | AA53: 0 | AB53: 3000 | AC53: 0.0004035082222
A54: 2.3 | B54: 2.871908169 | C54: 4.245155428e-16 | D54: -12.92222145 | E54: 3.735786921 | F54: -3.735786921 | G54: 4.576893574e-16 | H54: 1.169866568 | I54: 14.51362951 | J54: -7.949845027 | K54: 3.991205431e-17 | L54: 5.741973113 | M54: 47.78670179 | N54: 7.939309819e-16 | O54: 7.939309819e-16 | P54: 92.76670653 | Q54: 8.167656366e-16 | R54: -6.666666667 | S54: 2.4 | T54: 0.1 | U54: 0 | V54: 0 | W54: 0 | X54: 0.001700075048 | Y54: 0 | Z54: 0 | AA54: 0 | AB54: 3000 | AC54: 0.0003917275972
A55: 2.4 | B55: 2.076923666 | C55: 4.285067482e-16 | D55: -12.34802413 | E55: 3.732021946 | F55: -3.732021946 | G55: 4.572280921e-16 | H55: 1.170020423 | I55: 13.6461551 | J55: -7.667384697 | K55: 3.791008e-17 | L55: 6.493491602 | M55: 47.91772031 | N55: 8.371607575e-16 | O55: 8.371607575e-16 | P55: 91.59683903 | Q55: 8.507975381e-16 | R55: -6.944444444 | S55: 2.5 | T55: 0.1 | U55: 0 | V55: 0 | W55: 0 | X55: 0.001414022979 | Y55: 0 | Z55: 0 | AA55: 0 | AB55: 3000 | AC55: 0.0003801215
A56: 2.5 | B56: 1.310185196 | C56: 4.322977562e-16 | D56: -11.69867497 | E56: 3.72840894 | F56: -3.72840894 | G56: 4.567854453e-16 | H56: 1.170166206 | I56: 12.73759895 | J56: -7.450343325 | K56: 3.620884832e-17 | L56: 7.493306361 | M56: 47.97423539 | N56: 8.807526216e-16 | O56: 8.807526216e-16 | P56: 90.5019046 | Q56: 8.848294397e-16 | R56: -7.222222222 | S56: 2.6 | T56: 0.1 | U56: 0 | V56: 0 | W56: 0 | X56: 0.001142903914 | Y56: 0 | Z56: 0 | AA56: 0 | AB56: 3000 | AC56: 0.0003686899306
A57: 2.6 | B57: 0.5651508639 | C57: 4.35918641e-16 | D57: -10.94934434 | E57: 3.724985761 | F57: -3.724985761 | G57: 4.56366055e-16 | H57: 1.170302668 | I57: 11.75982201 | J57: -7.321808761 | K57: 3.489680345e-17 | L57: 8.881818697 | M57: 47.95753239 | N57: 9.246934538e-16 | O57: 9.246934538e-16 | P57: 89.49578835 | Q57: 9.188613412e-16 | R57: -7.5 | S57: 2.7 | T57: 0.1 | U57: 0 | V57: 0 | W57: 0 | X57: 0.0008863932229 | Y57: 0 | Z57: 0 | AA57: 0 | AB57: 3000 | AC57: 0.0003574328889
A58: 2.7 | B58: -0.1670300122 | C58: 4.394083214e-16 | D58: -10.06116247 | E58: 3.721803953 | F58: -3.721803953 | G58: 4.559762363e-16 | H58: 1.170428074 | I58: 10.67067983 | J58: -7.340856201 | K58: 3.421390019e-17 | L58: 10.97200245 | M58: 47.86742083 | N58: 9.689764249e-16 | O58: 9.689764249e-16 | P58: 88.59939213 | Q58: 9.528932427e-16 | R58: -7.777777778 | S58: 2.8 | T58: 0.1 | U58: 0 | V58: 0 | W58: 0 | X58: 0.0006441662737 | Y58: 0 | Z58: 0 | AA58: 0 | AB58: 3000 | AC58: 0.000346350375
A59: 2.8 | B59: -0.9011156323 | C59: 4.428297114e-16 | D59: -8.963962223 | E59: 3.71893919 | F59: -3.71893919 | G59: 4.556252602e-16 | H59: 1.170539816 | I59: 9.396422103 | J59: -7.687292216 | K59: 3.490748122e-17 | L59: 14.64954643 | M59: 47.70043634 | N59: 1.013608471e-15 | O59: 1.013608471e-15 | P59: 87.84949137 | Q59: 9.869251442e-16 | R59: -8.055555556 | S59: 2.9 | T59: 0.1 | U59: 0 | V59: 0 | W59: 0 | X59: 0.0004158984354 | Y59: 0 | Z59: 0 | AA59: 0 | AB59: 3000 | AC59: 0.0003354423889
A60: 2.9 | B60: -1.669844854 | C60: 4.463204595e-16 | D60: -7.49900758 | E60: 3.716520502 | F60: -3.716520502 | G60: 4.553289351e-16 | H60: 1.170633304 | I60: 7.773287328 | J60: -9.240184849 | K60: 4.067082131e-17 | L60: 24.05098313 | M60: 47.44105001 | N60: 1.058647225e-15 | O60: 1.058647225e-15 | P60: 87.34010044 | Q60: 1.020957046e-15 | R60: -8.333333333 | S60: 3 | T60: 0.1 | U60: 0 | V60: 0 | W60: 0 | X60: 0.0002012650767 | Y60: 0 | Z60: 0 | AA60: 0 | AB60: 3000 | AC60: 0.0003247089306
A61: 3 | B61: -2.593863339 | C61: 4.503875416e-16 | D61: -5.093909267 | E61: 3.71486587 | F61: -3.71486587 | G61: 4.551262181e-16 | H61: 1.170696813 | I61: 5.215798912 | J61: 11316.87051 | K61: -4.783841812e-14 | L61: -51434.40927 | M61: 47.44105001 | N61: 1.058647225e-15 | O61: 1.058647225e-15 | P61: 87.34010044 | Q61: 1.054988947e-15 | R61: -8.611111111 | S61: 3.1 | T61: 0.1 | U61: 47.44105001 | V61: 1.058647225e-15 | W61: 87.34010044 | X61: =IF($B$24="C",IF((3.14159265*1860/4)*((0.001*$B$18)-(2*$B$26*A61))^2*((0.33333*0.001*$B$18)-(2*$B$26*A61))<0,(3.14159265*1860/4)*((0.001*$B$18)-(2*$B$26*A61))^2*((0.33333*0.001*$B$18)-(2*$B$26*A61)),(3.14159265*1860/4)*((0.001*$B$18)-(2*$B$26*A61))^2*((0.33333*0.001*$B$18)-(2*$B$26*A61))),$B$19) -> -5.843362329e-08 | Y61: 47.44105001 | Z61: 1.058647225e-15 | AA61: 87.34010044 | AB61: 3.1 | AC61: 0.00031415
A62: 3.1 | B62: 1129.093187 | C62: -4.333454271e-15 | D62: -5148.534836 | E62: 3.71486587 | F62: -3.71486587 | G62: 4.551262181e-16 | H62: 1.170696813 | I62: 5271.685218 | J62: 3466535.863 | K62: -1.465366171e-11 | L62: -15755177.33 | M62: 47.44105001 | N62: 1.058647225e-15 | O62: 1.058647225e-15 | P62: 87.34010044 | Q62: 1.089020849e-15 | R62: -8.888888889 | S62: 3.2 | T62: 0.1 | U62: 0 | V62: 0 | W62: 0 | X62: =IF($B$24="C",IF((3.14159265*1860/4)*((0.001*$B$18)-(2*$B$26*A62))^2*((0.33333*0.001*$B$18)-(2*$B$26*A62))<0,(3.14159265*1860/4)*((0.001*$B$18)-(2*$B$26*A62))^2*((0.33333*0.001*$B$18)-(2*$B$26*A62)),(3.14159265*1860/4)*((0.001*$B$18)-(2*$B$26*A62))^2*((0.33333*0.001*$B$18)-(2*$B$26*A62))),$B$19) -> -0.0001883967268 | Y62: 47.44105001 | Z62: 1.058647225e-15 | AA62: 87.34010044 | AB62: 3.2 | AC62: 0.0003037655972
A63: 3.2 | B63: 347782.6795 | C63: -1.469699625e-12 | D63: -1580666.267 | E63: 3.71486587 | F63: -3.71486587 | G63: 4.551262181e-16 | H63: 1.170696813 | I63: 1618474.969 | J63: 1.633968233e+11 | K63: -6.907073423e-07 | L63: -7.426278054e+11 | M63: 47.44105001 | N63: 1.058647225e-15 | O63: 1.058647225e-15 | P63: 87.34010044 | Q63: 1.12305275e-15 | R63: -9.166666667 | S63: 3.3 | T63: 0.1 | U63: 0 | V63: 0 | W63: 0 | X63: -0.000364074434 | Y63: 47.44105001 | Z63: 1.058647225e-15 | AA63: 87.34010044 | AB63: 3.3 | AC63: 0.0002935557222
A64: 3.3 | B64: 1.634003011e+10 | C64: -6.907220393e-08 | D64: -7.42643612e+10 | E64: 3.71486587 | F64: -3.71486587 | G64: 4.551262181e-16 | H64: 1.170696813 | I64: 7.604072547e+10 | J64: 2.404665048e+20 | K64: -1016.49455 | L64: -1.092904434e+21 | M64: 47.44105001 | N64: 1.058647225e-15 | O64: 1.058647225e-15 | P64: 87.34010044 | Q64: 1.157084652e-15 | R64: -9.444444444 | S64: 3.4 | T64: 0.1 | U64: 0 | V64: 0 | W64: 0 | X64: -0.0005274161865 | Y64: 47.44105001 | Z64: 1.058647225e-15 | AA64: 87.34010044 | AB64: 3.4 | AC64: 0.000283520375
A65: 3.4 | B65: 2.404665049e+19 | C65: -101.6494551 | D65: -1.092904435e+20 | E65: 3.71486587 | F65: -3.71486587 | G65: 4.551262181e-16 | H65: 1.170696813 | I65: 1.119046131e+20 | J65: 3.905981551e+38 | K65: -1.651127655e+21 | L65: -1.775242902e+39 | M65: 47.44105001 | N65: 1.058647225e-15 | O65: 1.058647225e-15 | P65: 87.34010044 | Q65: 1.191116553e-15 | R65: -9.722222222 | S65: 3.5 | T65: 0.1 | U65: 0 | V65: 0 | W65: 0 | X65: -0.0006787466157 | Y65: 47.44105001 | Z65: 1.058647225e-15 | AA65: 87.34010044 | AB65: 3.5 | AC65: 0.0002736595556
A66: 3.5 | B66: 3.905981551e+37 | C66: -1.651127655e+20 | D66: -1.775242902e+38 | E66: 3.71486587 | F66: -3.71486587 | G66: 4.551262181e-16 | H66: 1.170696813 | I66: 1.817705774e+38 | J66: 8.244757412e+74 | K66: -3.485205138e+57 | L66: -3.747187968e+75 | M66: 47.44105001 | N66: 1.058647225e-15 | O66: 1.058647225e-15 | P66: 87.34010044 | Q66: 1.225148455e-15 | R66: -10 | S66: 3.6 | T66: 0.1 | U66: 0 | V66: 0 | W66: 0 | X66: -0.0008183903526 | Y66: 47.44105001 | Z66: 1.058647225e-15 | AA66: 87.34010044 | AB66: 3.6 | AC66: 0.0002639732639
A67: 3.6 | B67: 8.244757412e+73 | C67: -3.485205138e+56 | D67: -3.747187968e+74 | E67: 3.71486587 | F67: -3.71486587 | G67: 4.551262181e-16 | H67: 1.170696813 | I67: 3.836818723e+74 | J67: 3.061232861e+147 | K67: -1.294037406e+130 | L67: -1.391310183e+148 | M67: 47.44105001 | N67: 1.058647225e-15 | O67: 1.058647225e-15 | P67: 87.34010044 | Q67: 1.259180356e-15 | R67: -10.27777778 | S67: 3.7 | T67: 0.1 | U67: 0 | V67: 0 | W67: 0 | X67: -0.0009466720285 | Y67: 47.44105001 | Z67: 1.058647225e-15 | AA67: 87.34010044 | AB67: 3.7 | AC67: 0.0002544615
A68: 3.7 | B68: 3.061232861e+146 | C68: -1.294037406e+129 | D68: -1.391310183e+147 | E68: 3.71486587 | F68: -3.71486587 | G68: 4.551262181e-16 | H68: 1.170696813 | I68: 1.424589587e+147 | J68: 3.617342647e+292 | K68: -1.529114872e+275 | L68: -1.64405842e+293 | M68: 47.44105001 | N68: 1.058647225e-15 | O68: 1.058647225e-15 | P68: 87.34010044 | Q68: 1.293212258e-15 | R68: -10.55555556 | S68: 3.8 | T68: 0.1 | U68: 0 | V68: 0 | W68: 0 | X68: -0.001063916275 | Y68: 47.44105001 | Z68: 1.058647225e-15 | AA68: 87.34010044 | AB68: 3.8 | AC68: 0.0002451242639
A69: 3.8 | B69: 3.617342647e+291 | C69: -1.529114872e+274 | D69: -1.64405842e+292 | E69: 3.71486587 | F69: -3.71486587 | G69: 4.551262181e-16 | H69: 1.170696813 | M69: 47.44105001 | N69: 1.058647225e-15 | O69: 1.058647225e-15 | P69: 87.34010044 | Q69: 1.327244159e-15 | R69: -10.83333333 | S69: 3.9 | T69: 0.1 | U69: 0 | V69: 0 | W69: 0 | X69: -0.001170447723 | Y69: 47.44105001 | Z69: 1.058647225e-15 | AA69: 87.34010044 | AB69: 3.9 | AC69: 0.0002359615556
A70: 3.9 | E70: 3.71486587 | F70: -3.71486587 | G70: 4.551262181e-16 | H70: 1.170696813 | M70: 47.44105001 | N70: 1.058647225e-15 | O70: 1.058647225e-15 | P70: 87.34010044 | Q70: 1.361276061e-15 | R70: -11.11111111 | S70: 4 | U70: 0 | V70: 0 | W70: 0 | X70: -0.001266591003 | Y70: 47.44105001 | Z70: 1.058647225e-15 | AA70: 87.34010044 | AB70: 4 | AC70: 0.000226973375
A71: 4 | E71: 3.71486587 | F71: -3.71486587 | G71: 4.551262181e-16 | H71: 1.170696813 | M71: 47.44105001 | N71: 1.058647225e-15 | O71: 1.058647225e-15 | P71: 87.34010044 | Q71: 1.395307963e-15 | R71: -11.38888889 | S71: 4.1 | U71: 0 | V71: 0 | W71: 0 | X71: -0.001352670748 | Y71: 47.44105001 | Z71: 1.058647225e-15 | AA71: 87.34010044 | AB71: 4.1 | AC71: 0.0002181597222
A72: 4.1 | E72: 3.71486587 | F72: -3.71486587 | G72: 4.551262181e-16 | H72: 1.170696813 | M72: 47.44105001 | N72: 1.058647225e-15 | O72: 1.058647225e-15 | P72: 87.34010044 | Q72: 1.429339864e-15 | R72: -11.66666667 | S72: 4.2 | U72: 0 | V72: 0 | W72: 0 | X72: -0.001429011587 | Y72: 47.44105001 | Z72: 1.058647225e-15 | AA72: 87.34010044 | AB72: 4.2 | AC72: 0.0002095205972
A73: 4.2 | E73: 3.71486587 | F73: -3.71486587 | G73: 4.551262181e-16 | H73: 1.170696813 | M73: 47.44105001 | N73: 1.058647225e-15 | O73: 1.058647225e-15 | P73: 87.34010044 | Q73: 1.463371766e-15 | R73: -11.94444444 | S73: 4.3 | U73: 0 | V73: 0 | W73: 0 | X73: -0.001495938154 | Y73: 47.44105001 | Z73: 1.058647225e-15 | AA73: 87.34010044 | AB73: 4.3 | AC73: 0.000201056
A74: 4.3 | E74: 3.71486587 | F74: -3.71486587 | G74: 4.551262181e-16 | H74: 1.170696813 | M74: 47.44105001 | N74: 1.058647225e-15 | O74: 1.058647225e-15 | P74: 87.34010044 | Q74: 1.497403667e-15 | R74: -12.22222222 | S74: 4.4 | U74: 0 | V74: 0 | W74: 0 | X74: -0.001553775078 | Y74: 47.44105001 | Z74: 1.058647225e-15 | AA74: 87.34010044 | AB74: 4.4 | AC74: 0.0001927659306
A75: 4.4 | E75: 3.71486587 | F75: -3.71486587 | G75: 4.551262181e-16 | H75: 1.170696813 | M75: 47.44105001 | N75: 1.058647225e-15 | O75: 1.058647225e-15 | P75: 87.34010044 | Q75: 1.531435569e-15 | R75: -12.5 | S75: 4.5 | U75: 0 | V75: 0 | W75: 0 | X75: -0.001602846991 | Y75: 47.44105001 | Z75: 1.058647225e-15 | AA75: 87.34010044 | AB75: 4.5 | AC75: 0.0001846503889
A76: 4.5 | E76: 3.71486587 | F76: -3.71486587 | G76: 4.551262181e-16 | H76: 1.170696813 | M76: 47.44105001 | N76: 1.058647225e-15 | O76: 1.058647225e-15 | P76: 87.34010044 | Q76: 1.56546747e-15 | R76: -12.77777778 | S76: 4.6 | U76: 0 | V76: 0 | W76: 0 | X76: -0.001643478524 | Y76: 47.44105001 | Z76: 1.058647225e-15 | AA76: 87.34010044 | AB76: 4.6 | AC76: 0.000176709375
A77: 4.6 | E77: 3.71486587 | F77: -3.71486587 | G77: 4.551262181e-16 | H77: 1.170696813 | M77: 47.44105001 | N77: 1.058647225e-15 | O77: 1.058647225e-15 | P77: 87.34010044 | Q77: 1.599499372e-15 | R77: -13.05555556 | S77: 4.7 | U77: 0 | V77: 0 | W77: 0 | X77: -0.001675994309 | Y77: 47.44105001 | Z77: 1.058647225e-15 | AA77: 87.34010044 | AB77: 4.7 | AC77: 0.0001689428889
A78: 4.7 | E78: 3.71486587 | F78: -3.71486587 | G78: 4.551262181e-16 | H78: 1.170696813 | M78: 47.44105001 | N78: 1.058647225e-15 | O78: 1.058647225e-15 | P78: 87.34010044 | Q78: 1.633531273e-15 | R78: -13.33333333 | S78: 4.8 | U78: 0 | V78: 0 | W78: 0 | X78: -0.001700718976 | Y78: 47.44105001 | Z78: 1.058647225e-15 | AA78: 87.34010044 | AB78: 4.8 | AC78: 0.0001613509306
A79: 4.8 | E79: 3.71486587 | F79: -3.71486587 | G79: 4.551262181e-16 | H79: 1.170696813 | M79: 47.44105001 | N79: 1.058647225e-15 | O79: 1.058647225e-15 | P79: 87.34010044 | Q79: 1.667563175e-15 | R79: -13.61111111 | S79: 4.9 | U79: 0 | V79: 0 | W79: 0 | X79: -0.001717977157 | Y79: 47.44105001 | Z79: 1.058647225e-15 | AA79: 87.34010044 | AB79: 4.9 | AC79: 0.0001539335
A80: 4.9 | E80: 3.71486587 | F80: -3.71486587 | G80: 4.551262181e-16 | H80: 1.170696813 | M80: 47.44105001 | N80: 1.058647225e-15 | O80: 1.058647225e-15 | P80: 87.34010044 | Q80: 1.701595076e-15 | R80: -13.88888889 | S80: 5 | U80: 0 | V80: 0 | W80: 0 | X80: -0.001728093484 | Y80: 47.44105001 | Z80: 1.058647225e-15 | AA80: 87.34010044 | AB80: 5 | AC80: 0.0001466905972
A81: 5 | E81: 3.71486587 | F81: -3.71486587 | G81: 4.551262181e-16 | H81: 1.170696813 | M81: 47.44105001 | N81: 1.058647225e-15 | O81: 1.058647225e-15 | P81: 87.34010044 | Q81: 1.735626978e-15 | R81: -14.16666667 | S81: 5.1 | U81: 0 | V81: 0 | W81: 0 | X81: -0.001731392586 | Y81: 47.44105001 | Z81: 1.058647225e-15 | AA81: 87.34010044 | AB81: 5.1 | AC81: 0.0001396222222
A82: 5.1 | E82: 3.71486587 | F82: -3.71486587 | G82: 4.551262181e-16 | H82: 1.170696813 | M82: 47.44105001 | N82: 1.058647225e-15 | O82: 1.058647225e-15 | P82: 87.34010044 | Q82: 1.769658879e-15 | R82: -14.44444444 | S82: 5.2 | U82: 0 | V82: 0 | W82: 0 | X82: -0.001728199097 | Y82: 47.44105001 | Z82: 1.058647225e-15 | AA82: =IF(X82<=0,P82,0) -> 87.34010044 | AB82: 5.2 | AC82: 0.000132728375
A83: 5.2 | E83: 3.71486587 | F83: -3.71486587 | G83: 4.551262181e-16 | H83: 1.170696813 | M83: 47.44105001 | N83: 1.058647225e-15 | O83: 1.058647225e-15 | P83: 87.34010044 | Q83: 1.803690781e-15 | R83: -14.72222222 | S83: 5.3 | U83: 0 | V83: 0 | W83: 0 | X83: -0.001718837646 | Y83: 47.44105001 | Z83: 1.058647225e-15 | AA83: 87.34010044 | AB83: 5.3 | AC83: 0.0001260090556
A84: 5.3 | E84: 3.71486587 | F84: -3.71486587 | G84: 4.551262181e-16 | H84: 1.170696813 | M84: 47.44105001 | N84: 1.058647225e-15 | O84: 1.058647225e-15 | P84: 87.34010044 | Q84: 1.837722682e-15 | R84: -15 | S84: 5.4 | U84: 0 | V84: 0 | W84: 0 | X84: -0.001703632866 | Y84: 47.44105001 | Z84: 1.058647225e-15 | AA84: 87.34010044 | AB84: 5.4 | AC84: 0.0001194642639
A85: 5.4 | E85: 3.71486587 | F85: -3.71486587 | G85: 4.551262181e-16 | H85: 1.170696813 | M85: 47.44105001 | N85: 1.058647225e-15 | O85: 1.058647225e-15 | P85: 87.34010044 | Q85: 1.871754584e-15 | R85: -15.27777778 | S85: 5.5 | U85: 0 | V85: 0 | W85: 0 | X85: -0.001682909387 | Y85: 47.44105001 | Z85: 1.058647225e-15 | AA85: 87.34010044 | AB85: 5.5 | AC85: 0.000113094
A86: 5.5 | E86: 3.71486587 | F86: -3.71486587 | G86: 4.551262181e-16 | H86: 1.170696813 | M86: 47.44105001 | N86: 1.058647225e-15 | O86: 1.058647225e-15 | P86: 87.34010044 | Q86: 1.905786485e-15 | R86: -15.55555556 | S86: 5.6 | U86: 0 | V86: 0 | W86: 0 | X86: -0.00165699184 | Y86: 47.44105001 | Z86: 1.058647225e-15 | AA86: 87.34010044 | AB86: 5.6 | AC86: 0.0001068982639
A87: 5.6 | E87: 3.71486587 | F87: -3.71486587 | G87: 4.551262181e-16 | H87: 1.170696813 | M87: 47.44105001 | N87: 1.058647225e-15 | O87: 1.058647225e-15 | P87: 87.34010044 | Q87: 1.939818387e-15 | R87: -15.83333333 | S87: 5.7 | U87: 0 | V87: 0 | W87: 0 | X87: -0.001626204858 | Y87: 47.44105001 | Z87: 1.058647225e-15 | AA87: 87.34010044 | AB87: 5.7 | AC87: 0.0001008770556
A88: 5.7 | E88: 3.71486587 | F88: -3.71486587 | G88: 4.551262181e-16 | H88: 1.170696813 | M88: 47.44105001 | N88: 1.058647225e-15 | O88: 1.058647225e-15 | P88: 87.34010044 | Q88: 1.973850288e-15 | R88: -16.11111111 | S88: 5.8 | U88: 0 | V88: 0 | W88: 0 | X88: -0.00159087307 | Y88: 47.44105001 | Z88: 1.058647225e-15 | AA88: 87.34010044 | AB88: 5.8 | AC88: 9.5030375e-05
A89: 5.8 | E89: 3.71486587 | F89: -3.71486587 | G89: 4.551262181e-16 | H89: 1.170696813 | M89: 47.44105001 | N89: 1.058647225e-15 | O89: 1.058647225e-15 | P89: 87.34010044 | Q89: 2.00788219e-15 | R89: -16.38888889 | S89: 5.9 | U89: 0 | V89: 0 | W89: 0 | X89: -0.001551321109 | Y89: 47.44105001 | Z89: 1.058647225e-15 | AA89: 87.34010044 | AB89: 5.9 | AC89: 8.935822222e-05
A90: 5.9 | E90: 3.71486587 | F90: -3.71486587 | G90: 4.551262181e-16 | H90: 1.170696813 | M90: 47.44105001 | N90: 1.058647225e-15 | O90: 1.058647225e-15 | P90: 87.34010044 | Q90: 2.041914092e-15 | R90: -16.66666667 | S90: 6 | U90: 0 | V90: 0 | W90: 0 | X90: -0.001507873605 | Y90: 47.44105001 | Z90: 1.058647225e-15 | AA90: =IF(X90=0,P90,0) -> 0 | AB90: 6 | AC90: 8.386059722e-05
A91: 6 | E91: 3.71486587 | F91: -3.71486587 | G91: 4.551262181e-16 | H91: 1.170696813 | M91: 47.44105001 | N91: 1.058647225e-15 | O91: 1.058647225e-15 | P91: 87.34010044 | Q91: 2.075945993e-15 | R91: -16.94444444 | S91: 6.1 | U91: 0 | V91: 0 | W91: 0 | X91: -0.001460855191 | Y91: 47.44105001 | Z91: 1.058647225e-15 | AA91: =IF(X91<=0,P91,0) -> 87.34010044 | AB91: 6.1 | AC91: 7.85375e-05
A92: 6.1 | E92: 3.71486587 | F92: -3.71486587 | G92: 4.551262181e-16 | H92: 1.170696813 | M92: 47.44105001 | N92: 1.058647225e-15 | O92: 1.058647225e-15 | P92: 87.34010044 | Q92: 2.109977895e-15 | R92: -17.22222222 | S92: 6.2 | U92: 0 | V92: 0 | W92: 0 | X92: -0.001410590496 | Y92: 47.44105001 | Z92: 1.058647225e-15 | AA92: 87.34010044 | AB92: 6.2 | AC92: 7.338893056e-05
A93: 6.2 | E93: 3.71486587 | F93: -3.71486587 | G93: 4.551262181e-16 | H93: 1.170696813 | M93: 47.44105001 | N93: 1.058647225e-15 | O93: 1.058647225e-15 | P93: 87.34010044 | Q93: 2.144009796e-15 | R93: -17.5 | S93: 6.3 | U93: 0 | V93: 0 | W93: 0 | X93: -0.001357404152 | Y93: 47.44105001 | Z93: 1.058647225e-15 | AA93: 87.34010044 | AB93: 6.3 | AC93: 6.841488889e-05
A94: 6.3 | E94: 3.71486587 | F94: -3.71486587 | G94: 4.551262181e-16 | H94: 1.170696813 | M94: 47.44105001 | N94: 1.058647225e-15 | O94: 1.058647225e-15 | P94: 87.34010044 | Q94: 2.178041698e-15 | R94: -17.77777778 | S94: 6.4 | U94: 0 | V94: 0 | W94: 0 | X94: -0.001301620792 | Y94: 47.44105001 | Z94: 1.058647225e-15 | AA94: 87.34010044 | AB94: 6.4 | AC94: 6.3615375e-05
A95: 6.4 | E95: 3.71486587 | F95: -3.71486587 | G95: 4.551262181e-16 | H95: 1.170696813 | I95: =SQRT(((B95-F95)^2)+((C95-G95)^2)+(D95^2)) ->  | M95: 47.44105001 | N95: 1.058647225e-15 | O95: =ABS(N95) -> 1.058647225e-15 | P95: 87.34010044 | Q95: 2.212073599e-15 | R95: -18.05555556 | S95: 6.5 | U95: 0 | V95: 0 | W95: 0 | X95: -0.001243565044 | Y95: 47.44105001 | Z95: 1.058647225e-15 | AA95: 87.34010044 | AB95: 6.5 | AC95: 5.899038889e-05
A96: =A95+$B$22 -> 6.5 | B96: =B95+(J95*$B$22) ->  | C96: =C95+(K95*$B$22) ->  | D96: =D95+(L95*$B$22) ->  | E96: =IF($B$13=2,$B$23*((0.1036*LN(ABS(P95+1)))+0.8731),IF($B$13=3,$B$23*((0.139*LN(ABS(P95+1)))+0.7503),$B$23)) -> 3.71486587 | F96: =E96*COS(RADIANS($B$10)) -> -3.71486587 | G96: =E96*SIN(RADIANS($B$10)) -> 4.551262181e-16 | H96: =1.22*EXP(-0.0001065*(P95+$B$12)) -> 1.170696813 | M96: =IF(X96>0,IF(P95<=Param_1,M95,M95+(B97*$B$22)),M95) -> 47.44105001 | N96: =IF(X96>0,IF(P95<=Param_1,N95,N95+(C97*$B$22)),N95) -> 1.058647225e-15 | O96: 1.058647225e-15 | P96: =IF(X96>0,IF(P95<Param_1,P95,P95+(D97*$B$22)),P95) -> 87.34010044 | Q96: =IF(P95<Param_1,Q95,A97*$B$23*SIN(RADIANS($B$10))) -> 2.246105501e-15 | R96: =IF(P95<Param_1,R95,A97*$B$23*COS(RADIANS($B$10))) -> -18.33333333 | S96: =IF(P95<Param_1,S95,A97) -> 6.6 | U96: 0 | V96: 0 | W96: 0 | X96: -0.001183561542 | Y96: =IF(X96<=0,M96,0) -> 47.44105001 | Z96: =IF(X96<=0,N96,0) -> 1.058647225e-15 | AA96: 87.34010044 | AB96: =IF(X96<=0,S96,3000) -> 6.6 | AC96: =IF($B$24="S",$B$20,3.1415*(($B$18*0.0005)-($B$26*A96))^2) -> 5.453993056e-05
A97: 6.6 | E97: 3.71486587 | F97: -3.71486587 | G97: 4.551262181e-16 | H97: 1.170696813 | J97: =-0.5*H97*I97*AC97*$B$17*(B97-F97)/X97 ->  | K97: =-0.5*H97*I97*AC97*$B$17*(C97-G97)/X97 ->  | L97: =(-0.5*H97*AC97*I97*$B$17*D97/X97)-$B$21 ->  | M97: 47.44105001 | N97: 1.058647225e-15 | O97: 1.058647225e-15 | P97: 87.34010044 | Q97: 2.280137402e-15 | R97: -18.61111111 | S97: 6.7 | T97: =IF(D97<0,T96,A98) ->  | U97: =IF(ROUND(A97*10,3)=$B$14*10,M97,0) -> 0 | V97: =IF(ROUND(A97*10,3)=$B$14*10,N97,0) -> 0 | W97: =IF(ROUND(A97*10,3)=$B$14*10,P97,0) -> 0 | X97: -0.001121934917 | Y97: 47.44105001 | Z97: 1.058647225e-15 | AA97: 87.34010044 | AB97: 6.7 | AC97: 5.0264e-05
A98: 6.7 | E98: 3.71486587 | F98: -3.71486587 | G98: 4.551262181e-16 | H98: 1.170696813 | M98: 47.44105001 | N98: 1.058647225e-15 | O98: 1.058647225e-15 | P98: 87.34010044 | Q98: 2.314169304e-15 | R98: -18.88888889 | S98: 6.8 | U98: 0 | V98: 0 | W98: 0 | X98: -0.001059009798 | Y98: 47.44105001 | Z98: 1.058647225e-15 | AA98: 87.34010044 | AB98: 6.8 | AC98: 4.616259722e-05
A99: 6.8 | E99: 3.71486587 | F99: -3.71486587 | G99: 4.551262181e-16 | H99: 1.170696813 | M99: 47.44105001 | N99: 1.058647225e-15 | O99: 1.058647225e-15 | P99: 87.34010044 | Q99: 2.348201205e-15 | R99: -19.16666667 | S99: 6.9 | U99: 0 | V99: 0 | W99: 0 | X99: -0.0009951108186 | Y99: 47.44105001 | Z99: 1.058647225e-15 | AA99: 87.34010044 | AB99: 6.9 | AC99: 4.223572222e-05
A100: 6.9 | E100: 3.71486587 | F100: -3.71486587 | G100: 4.551262181e-16 | H100: 1.170696813 | M100: 47.44105001 | N100: 1.058647225e-15 | O100: 1.058647225e-15 | P100: 87.34010044 | Q100: 2.382233107e-15 | R100: -19.44444444 | S100: 7 | U100: 0 | V100: 0 | W100: 0 | X100: -0.000930562609 | Y100: 47.44105001 | Z100: 1.058647225e-15 | AA100: 87.34010044 | AB100: 7 | AC100: 3.8483375e-05
A101: 7 | E101: 3.71486587 | F101: -3.71486587 | G101: 4.551262181e-16 | H101: 1.170696813 | M101: 47.44105001 | N101: 1.058647225e-15 | O101: 1.058647225e-15 | P101: 87.34010044 | Q101: 2.416265008e-15 | R101: -19.72222222 | S101: 7.1 | U101: 0 | V101: 0 | W101: 0 | X101: -0.0008656898006 | Y101: 47.44105001 | Z101: 1.058647225e-15 | AA101: 87.34010044 | AB101: 7.1 | AC101: 3.490555556e-05
A102: 7.1 | E102: 3.71486587 | F102: -3.71486587 | G102: 4.551262181e-16 | H102: 1.170696813 | M102: 47.44105001 | N102: 1.058647225e-15 | O102: 1.058647225e-15 | P102: 87.34010044 | Q102: 2.45029691e-15 | R102: -20 | S102: 7.2 | U102: 0 | V102: 0 | W102: 0 | X102: -0.0008008170247 | Y102: 47.44105001 | Z102: 1.058647225e-15 | AA102: 87.34010044 | AB102: 7.2 | AC102: 3.150226389e-05
A103: 7.2 | E103: 3.71486587 | F103: -3.71486587 | G103: 4.551262181e-16 | H103: 1.170696813 | M103: 47.44105001 | N103: 1.058647225e-15 | O103: 1.058647225e-15 | P103: 87.34010044 | Q103: 2.484328811e-15 | R103: -20.27777778 | S103: 7.3 | U103: 0 | V103: 0 | W103: 0 | X103: -0.0007362689125 | Y103: 47.44105001 | Z103: 1.058647225e-15 | AA103: 87.34010044 | AB103: 7.3 | AC103: 2.82735e-05
A104: 7.3 | E104: 3.71486587 | F104: -3.71486587 | G104: 4.551262181e-16 | H104: 1.170696813 | M104: 47.44105001 | N104: 1.058647225e-15 | O104: 1.058647225e-15 | P104: 87.34010044 | Q104: 2.518360713e-15 | R104: -20.55555556 | S104: 7.4 | U104: 0 | V104: 0 | W104: 0 | X104: -0.0006723700952 | Y104: 47.44105001 | Z104: 1.058647225e-15 | AA104: 87.34010044 | AB104: 7.4 | AC104: 2.521926389e-05
A105: 7.4 | E105: 3.71486587 | F105: -3.71486587 | G105: 4.551262181e-16 | H105: 1.170696813 | M105: 47.44105001 | N105: 1.058647225e-15 | O105: 1.058647225e-15 | P105: 87.34010044 | Q105: 2.552392614e-15 | R105: -20.83333333 | S105: 7.5 | U105: 0 | V105: 0 | W105: 0 | X105: -0.0006094452041 | Y105: 47.44105001 | Z105: 1.058647225e-15 | AA105: 87.34010044 | AB105: 7.5 | AC105: 2.233955556e-05
A106: 7.5 | E106: 3.71486587 | F106: -3.71486587 | G106: 4.551262181e-16 | H106: 1.170696813 | M106: 47.44105001 | N106: 1.058647225e-15 | O106: 1.058647225e-15 | P106: 87.34010044 | Q106: 2.586424516e-15 | R106: -21.11111111 | S106: 7.6 | U106: 0 | V106: 0 | W106: 0 | X106: -0.0005478188704 | Y106: 47.44105001 | Z106: 1.058647225e-15 | AA106: 87.34010044 | AB106: 7.6 | AC106: 1.9634375e-05
A107: 7.6 | E107: 3.71486587 | F107: -3.71486587 | G107: 4.551262181e-16 | H107: 1.170696813 | M107: 47.44105001 | N107: 1.058647225e-15 | O107: 1.058647225e-15 | P107: 87.34010044 | Q107: 2.620456417e-15 | R107: -21.38888889 | S107: 7.7 | U107: 0 | V107: 0 | W107: 0 | X107: -0.0004878157254 | Y107: 47.44105001 | Z107: 1.058647225e-15 | AA107: 87.34010044 | AB107: 7.7 | AC107: 1.710372222e-05
A108: 7.7 | E108: 3.71486587 | F108: -3.71486587 | G108: 4.551262181e-16 | H108: 1.170696813 | M108: 47.44105001 | N108: 1.058647225e-15 | O108: 1.058647225e-15 | P108: 87.34010044 | Q108: 2.654488319e-15 | R108: -21.66666667 | S108: 7.8 | U108: 0 | V108: 0 | W108: 0 | X108: -0.0004297604003 | Y108: 47.44105001 | Z108: 1.058647225e-15 | AA108: 87.34010044 | AB108: 7.8 | AC108: 1.474759722e-05
A109: 7.8 | E109: 3.71486587 | F109: -3.71486587 | G109: 4.551262181e-16 | H109: 1.170696813 | M109: 47.44105001 | N109: 1.058647225e-15 | O109: 1.058647225e-15 | P109: 87.34010044 | Q109: 2.68852022e-15 | R109: -21.94444444 | S109: 7.9 | U109: 0 | V109: 0 | W109: 0 | X109: -0.0003739775264 | Y109: 47.44105001 | Z109: 1.058647225e-15 | AA109: 87.34010044 | AB109: 7.9 | AC109: 1.2566e-05
A110: 7.9 | E110: 3.71486587 | F110: -3.71486587 | G110: 4.551262181e-16 | H110: 1.170696813 | M110: 47.44105001 | N110: 1.058647225e-15 | O110: 1.058647225e-15 | P110: 87.34010044 | Q110: 2.722552122e-15 | R110: -22.22222222 | S110: 8 | U110: 0 | V110: 0 | W110: 0 | X110: -0.0003207917348 | Y110: 47.44105001 | Z110: 1.058647225e-15 | AA110: 87.34010044 | AB110: 8 | AC110: 1.055893056e-05
A111: 8 | E111: 3.71486587 | F111: -3.71486587 | G111: 4.551262181e-16 | H111: 1.170696813 | M111: 47.44105001 | N111: 1.058647225e-15 | O111: 1.058647225e-15 | P111: 87.34010044 | Q111: 2.756584024e-15 | R111: -22.5 | S111: 8.1 | U111: 0 | V111: 0 | W111: 0 | X111: -0.0002705276569 | Y111: 47.44105001 | Z111: 1.058647225e-15 | AA111: 87.34010044 | AB111: 8.1 | AC111: 8.726388889e-06
A112: 8.1 | E112: 3.71486587 | F112: -3.71486587 | G112: 4.551262181e-16 | H112: 1.170696813 | M112: 47.44105001 | N112: 1.058647225e-15 | O112: 1.058647225e-15 | P112: 87.34010044 | Q112: 2.790615925e-15 | R112: -22.77777778 | S112: 8.2 | U112: 0 | V112: 0 | W112: 0 | X112: -0.0002235099238 | Y112: 47.44105001 | Z112: 1.058647225e-15 | AA112: 87.34010044 | AB112: 8.2 | AC112: 7.068375e-06
A113: 8.2 | E113: 3.71486587 | F113: -3.71486587 | G113: 4.551262181e-16 | H113: 1.170696813 | M113: 47.44105001 | N113: 1.058647225e-15 | O113: 1.058647225e-15 | P113: 87.34010044 | Q113: 2.824647827e-15 | R113: -23.05555556 | S113: 8.3 | U113: 0 | V113: 0 | W113: 0 | X113: -0.0001800631669 | Y113: 47.44105001 | Z113: 1.058647225e-15 | AA113: 87.34010044 | AB113: 8.3 | AC113: 5.584888889e-06
A114: 8.3 | E114: 3.71486587 | F114: -3.71486587 | G114: 4.551262181e-16 | H114: 1.170696813 | M114: 47.44105001 | N114: 1.058647225e-15 | O114: 1.058647225e-15 | P114: 87.34010044 | Q114: 2.858679728e-15 | R114: -23.33333333 | S114: 8.4 | U114: 0 | V114: 0 | W114: 0 | X114: -0.0001405120173 | Y114: 47.44105001 | Z114: 1.058647225e-15 | AA114: 87.34010044 | AB114: 8.4 | AC114: 4.275930556e-06
A115: 8.4 | E115: 3.71486587 | F115: -3.71486587 | G115: 4.551262181e-16 | H115: 1.170696813 | M115: 47.44105001 | N115: 1.058647225e-15 | O115: 1.058647225e-15 | P115: 87.34010044 | Q115: 2.89271163e-15 | R115: -23.61111111 | S115: 8.5 | U115: 0 | V115: 0 | W115: 0 | X115: -0.0001051811063 | Y115: 47.44105001 | Z115: 1.058647225e-15 | AA115: 87.34010044 | AB115: 8.5 | AC115: 3.1415e-06
A116: 8.5 | E116: 3.71486587 | F116: -3.71486587 | G116: 4.551262181e-16 | H116: 1.170696813 | M116: 47.44105001 | N116: 1.058647225e-15 | O116: 1.058647225e-15 | P116: 87.34010044 | Q116: 2.926743531e-15 | R116: -23.88888889 | S116: 8.6 | U116: 0 | V116: 0 | W116: 0 | X116: -7.439506507e-05 | Y116: 47.44105001 | Z116: 1.058647225e-15 | AA116: 87.34010044 | AB116: 8.6 | AC116: 2.181597222e-06
A117: 8.6 | E117: 3.71486587 | F117: -3.71486587 | G117: 4.551262181e-16 | H117: 1.170696813 | M117: 47.44105001 | N117: 1.058647225e-15 | O117: 1.058647225e-15 | P117: 87.34010044 | Q117: 2.960775433e-15 | R117: -24.16666667 | S117: 8.7 | U117: 0 | V117: 0 | W117: 0 | X117: -4.847852495e-05 | Y117: 47.44105001 | Z117: 1.058647225e-15 | AA117: 87.34010044 | AB117: 8.7 | AC117: 1.396222222e-06
A118: 8.7 | E118: 3.71486587 | F118: -3.71486587 | G118: 4.551262181e-16 | H118: 1.170696813 | M118: 47.44105001 | N118: 1.058647225e-15 | O118: 1.058647225e-15 | P118: 87.34010044 | Q118: 2.994807334e-15 | R118: -24.44444444 | S118: 8.8 | U118: 0 | V118: 0 | W118: 0 | X118: -2.775611715e-05 | Y118: 47.44105001 | Z118: 1.058647225e-15 | AA118: 87.34010044 | AB118: 8.8 | AC118: 7.85375e-07
A119: 8.8 | E119: 3.71486587 | F119: -3.71486587 | G119: 4.551262181e-16 | H119: 1.170696813 | M119: 47.44105001 | N119: 1.058647225e-15 | O119: 1.058647225e-15 | P119: 87.34010044 | Q119: 3.028839236e-15 | R119: -24.72222222 | S119: 8.9 | U119: 0 | V119: 0 | W119: 0 | X119: -1.255247289e-05 | Y119: 47.44105001 | Z119: 1.058647225e-15 | AA119: 87.34010044 | AB119: 8.9 | AC119: 3.490555556e-07
A120: 8.9 | E120: 3.71486587 | F120: -3.71486587 | G120: 4.551262181e-16 | H120: 1.170696813 | M120: 47.44105001 | N120: 1.058647225e-15 | O120: 1.058647225e-15 | P120: 87.34010044 | Q120: 3.062871137e-15 | R120: -25 | S120: 9 | U120: 0 | V120: 0 | W120: 0 | X120: -3.19222343e-06 | Y120: 47.44105001 | Z120: 1.058647225e-15 | AA120: 87.34010044 | AB120: 9 | AC120: 8.726388889e-08
A121: 9 | E121: 3.71486587 | F121: -3.71486587 | G121: 4.551262181e-16 | H121: 1.170696813 | M121: 47.44105001 | N121: 1.058647225e-15 | O121: 1.058647225e-15 | P121: 87.34010044 | Q121: 3.096903039e-15 | R121: -25.27777778 | S121: 9.1 | U121: 0 | V121: 0 | W121: 0 | X121: -6.893052187e-32 | Y121: 47.44105001 | Z121: 1.058647225e-15 | AA121: 87.34010044 | AB121: 9.1 | AC121: 1.852907107e-33
A122: 9.1 | E122: 3.71486587 | F122: -3.71486587 | G122: 4.551262181e-16 | H122: 1.170696813 | M122: 47.44105001 | N122: 1.058647225e-15 | O122: 1.058647225e-15 | P122: 87.34010044 | Q122: 3.13093494e-15 | R122: -25.55555556 | S122: 9.2 | U122: 0 | V122: 0 | W122: 0 | X122: -3.300433843e-06 | Y122: 47.44105001 | Z122: 1.058647225e-15 | AA122: 87.34010044 | AB122: 9.2 | AC122: 8.726388889e-08
A123: 9.2 | E123: 3.71486587 | F123: -3.71486587 | G123: 4.551262181e-16 | H123: 1.170696813 | M123: 47.44105001 | N123: 1.058647225e-15 | O123: 1.058647225e-15 | P123: 87.34010044 | Q123: 3.164966842e-15 | R123: -25.83333333 | S123: 9.3 | U123: 0 | V123: 0 | W123: 0 | X123: -1.34181562e-05 | Y123: 47.44105001 | Z123: 1.058647225e-15 | AA123: 87.34010044 | AB123: 9.3 | AC123: 3.490555556e-07
A124: 9.3 | E124: 3.71486587 | F124: -3.71486587 | G124: 4.551262181e-16 | H124: 1.170696813 | M124: 47.44105001 | N124: 1.058647225e-15 | O124: 1.058647225e-15 | P124: 87.34010044 | Q124: 3.198998743e-15 | R124: -26.11111111 | S124: 9.4 | U124: 0 | V124: 0 | W124: 0 | X124: -3.067779831e-05 | Y124: 47.44105001 | Z124: 1.058647225e-15 | AA124: 87.34010044 | AB124: 9.4 | AC124: 7.85375e-07
A125: 9.4 | E125: 3.71486587 | F125: -3.71486587 | G125: 4.551262181e-16 | H125: 1.170696813 | M125: 47.44105001 | N125: 1.058647225e-15 | O125: 1.058647225e-15 | P125: 87.34010044 | Q125: 3.233030645e-15 | R125: -26.38888889 | S125: 9.5 | U125: 0 | V125: 0 | W125: 0 | X125: -5.540399142e-05 | Y125: 47.44105001 | Z125: 1.058647225e-15 | AA125: 87.34010044 | AB125: 9.5 | AC125: 1.396222222e-06
A126: 9.5 | E126: 3.71486587 | F126: -3.71486587 | G126: 4.551262181e-16 | H126: 1.170696813 | M126: 47.44105001 | N126: 1.058647225e-15 | O126: 1.058647225e-15 | P126: 87.34010044 | Q126: 3.267062546e-15 | R126: -26.66666667 | S126: 9.6 | U126: 0 | V126: 0 | W126: 0 | X126: =IF($B$24="C",IF((3.14159265*1860/4)*((0.001*$B$18)-(2*$B$26*A126))^2*((0.33333*0.001*$B$18)-(2*$B$26*A126))<0,(3.14159265*1860/4)*((0.001*$B$18)-(2*$B$26*A126))^2*((0.33333*0.001*$B$18)-(2*$B$26*A126)),(3.14159265*1860/4)*((0.001*$B$18)-(2*$B$26*A126))^2*((0.33333*0.001*$B$18)-(2*$B$26*A126))),$B$19) -> -8.792136676e-05 | Y126: 47.44105001 | Z126: 1.058647225e-15 | AA126: 87.34010044 | AB126: 9.6 | AC126: 2.181597222e-06
A127: 9.6 | E127: 3.71486587 | F127: -3.71486587 | G127: 4.551262181e-16 | H127: 1.170696813 | M127: 47.44105001 | N127: 1.058647225e-15 | O127: 1.058647225e-15 | P127: 87.34010044 | Q127: 3.301094448e-15 | R127: -26.94444444 | S127: 9.7 | U127: 0 | V127: 0 | W127: 0 | X127: -0.0001285545556 | Y127: 47.44105001 | Z127: 1.058647225e-15 | AA127: 87.34010044 | AB127: 9.7 | AC127: 3.1415e-06
A128: 9.7 | E128: 3.71486587 | F128: -3.71486587 | G128: 4.551262181e-16 | H128: 1.170696813 | M128: 47.44105001 | N128: 1.058647225e-15 | O128: 1.058647225e-15 | P128: 87.34010044 | Q128: 3.335126349e-15 | R128: -27.22222222 | S128: 9.8 | U128: 0 | V128: 0 | W128: 0 | X128: -0.0001776281891 | Y128: 47.44105001 | Z128: 1.058647225e-15 | AA128: 87.34010044 | AB128: 9.8 | AC128: 4.275930556e-06
A129: 9.8 | E129: 3.71486587 | F129: -3.71486587 | G129: 4.551262181e-16 | H129: 1.170696813 | M129: 47.44105001 | N129: 1.058647225e-15 | O129: 1.058647225e-15 | P129: 87.34010044 | Q129: 3.369158251e-15 | R129: -27.5 | S129: 9.9 | U129: 0 | V129: 0 | W129: 0 | X129: -0.0002354668986 | Y129: 47.44105001 | Z129: 1.058647225e-15 | AA129: 87.34010044 | AB129: 9.9 | AC129: 5.584888889e-06
A130: 9.9 | E130: 3.71486587 | F130: -3.71486587 | G130: 4.551262181e-16 | H130: 1.170696813 | M130: 47.44105001 | N130: 1.058647225e-15 | O130: 1.058647225e-15 | P130: 87.34010044 | Q130: 3.403190153e-15 | R130: -27.77777778 | S130: 10 | U130: 0 | V130: 0 | W130: 0 | X130: -0.0003023953153 | Y130: 47.44105001 | Z130: 1.058647225e-15 | AA130: 87.34010044 | AB130: 10 | AC130: 7.068375e-06
A131: 10 | E131: 3.71486587 | F131: -3.71486587 | G131: 4.551262181e-16 | H131: 1.170696813 | M131: 47.44105001 | N131: 1.058647225e-15 | O131: 1.058647225e-15 | P131: 87.34010044 | Q131: 3.437222054e-15 | R131: -28.05555556 | S131: 10.1 | U131: 0 | V131: 0 | W131: 0 | X131: -0.0003787380704 | Y131: 47.44105001 | Z131: 1.058647225e-15 | AA131: 87.34010044 | AB131: 10.1 | AC131: 8.726388889e-06
A132: 10.1 | E132: 3.71486587 | F132: -3.71486587 | G132: 4.551262181e-16 | H132: 1.170696813 | M132: 47.44105001 | N132: 1.058647225e-15 | O132: 1.058647225e-15 | P132: 87.34010044 | Q132: 3.471253956e-15 | R132: -28.33333333 | S132: 10.2 | U132: 0 | V132: 0 | W132: 0 | X132: -0.0004648197952 | Y132: 47.44105001 | Z132: 1.058647225e-15 | AA132: 87.34010044 | AB132: 10.2 | AC132: 1.055893056e-05
A133: 10.2 | E133: 3.71486587 | F133: -3.71486587 | G133: 4.551262181e-16 | H133: 1.170696813 | M133: 47.44105001 | N133: 1.058647225e-15 | O133: 1.058647225e-15 | P133: 87.34010044 | Q133: 3.505285857e-15 | R133: -28.61111111 | S133: 10.3 | U133: 0 | V133: 0 | W133: 0 | X133: -0.0005609651209 | Y133: 47.44105001 | Z133: 1.058647225e-15 | AA133: 87.34010044 | AB133: 10.3 | AC133: 1.2566e-05
A134: 10.3 | E134: 3.71486587 | F134: -3.71486587 | G134: 4.551262181e-16 | H134: 1.170696813 | M134: 47.44105001 | N134: 1.058647225e-15 | O134: 1.058647225e-15 | P134: 87.34010044 | Q134: 3.539317759e-15 | R134: -28.88888889 | S134: 10.4 | U134: 0 | V134: 0 | W134: 0 | X134: -0.0006674986788 | Y134: 47.44105001 | Z134: 1.058647225e-15 | AA134: 87.34010044 | AB134: 10.4 | AC134: 1.474759722e-05
A135: 10.4 | E135: 3.71486587 | F135: -3.71486587 | G135: 4.551262181e-16 | H135: 1.170696813 | M135: 47.44105001 | N135: 1.058647225e-15 | O135: 1.058647225e-15 | P135: 87.34010044 | Q135: 3.57334966e-15 | R135: -29.16666667 | S135: 10.5 | U135: 0 | V135: 0 | W135: 0 | X135: -0.0007847451001 | Y135: 47.44105001 | Z135: 1.058647225e-15 | AA135: 87.34010044 | AB135: 10.5 | AC135: 1.710372222e-05
A136: 10.5 | E136: 3.71486587 | F136: -3.71486587 | G136: 4.551262181e-16 | H136: 1.170696813 | M136: 47.44105001 | N136: 1.058647225e-15 | O136: 1.058647225e-15 | P136: 87.34010044 | Q136: 3.607381562e-15 | R136: -29.44444444 | S136: 10.6 | U136: 0 | V136: 0 | W136: 0 | X136: -0.000913029016 | Y136: 47.44105001 | Z136: 1.058647225e-15 | AA136: 87.34010044 | AB136: 10.6 | AC136: 1.9634375e-05
A137: 10.6 | E137: 3.71486587 | F137: -3.71486587 | G137: 4.551262181e-16 | H137: 1.170696813 | M137: 47.44105001 | N137: 1.058647225e-15 | O137: 1.058647225e-15 | P137: 87.34010044 | Q137: 3.641413463e-15 | R137: -29.72222222 | S137: 10.7 | U137: 0 | V137: 0 | W137: 0 | X137: -0.001052675058 | Y137: 47.44105001 | Z137: 1.058647225e-15 | AA137: 87.34010044 | AB137: 10.7 | AC137: 2.233955556e-05
A138: 10.7 | E138: 3.71486587 | F138: -3.71486587 | G138: 4.551262181e-16 | H138: 1.170696813 | M138: 47.44105001 | N138: 1.058647225e-15 | O138: 1.058647225e-15 | P138: 87.34010044 | Q138: 3.675445365e-15 | R138: -30 | S138: 10.8 | U138: 0 | V138: 0 | W138: 0 | X138: -0.001204007857 | Y138: 47.44105001 | Z138: 1.058647225e-15 | AA138: 87.34010044 | AB138: 10.8 | AC138: 2.521926389e-05
A139: 10.8 | E139: 3.71486587 | F139: -3.71486587 | G139: 4.551262181e-16 | H139: 1.170696813 | M139: 47.44105001 | N139: 1.058647225e-15 | O139: 1.058647225e-15 | P139: 87.34010044 | Q139: 3.709477266e-15 | R139: -30.27777778 | S139: 10.9 | U139: 0 | V139: 0 | W139: 0 | X139: -0.001367352044 | Y139: 47.44105001 | Z139: 1.058647225e-15 | AA139: 87.34010044 | AB139: 10.9 | AC139: 2.82735e-05
A140: 10.9 | E140: 3.71486587 | F140: -3.71486587 | G140: 4.551262181e-16 | H140: 1.170696813 | M140: 47.44105001 | N140: 1.058647225e-15 | O140: 1.058647225e-15 | P140: 87.34010044 | Q140: 3.743509168e-15 | R140: -30.55555556 | S140: 11 | U140: 0 | V140: 0 | W140: 0 | X140: -0.001543032251 | Y140: 47.44105001 | Z140: 1.058647225e-15 | AA140: 87.34010044 | AB140: 11 | AC140: 3.150226389e-05
A141: 11 | E141: 3.71486587 | F141: -3.71486587 | G141: 4.551262181e-16 | H141: 1.170696813 | M141: 47.44105001 | N141: 1.058647225e-15 | O141: 1.058647225e-15 | P141: 87.34010044 | Q141: 3.777541069e-15 | R141: -30.83333333 | S141: 11.1 | U141: 0 | V141: 0 | W141: 0 | X141: -0.001731373109 | Y141: 47.44105001 | Z141: 1.058647225e-15 | AA141: 87.34010044 | AB141: 11.1 | AC141: 3.490555556e-05
A142: 11.1 | E142: 3.71486587 | F142: -3.71486587 | G142: 4.551262181e-16 | H142: 1.170696813 | M142: 47.44105001 | N142: 1.058647225e-15 | O142: 1.058647225e-15 | P142: 87.34010044 | Q142: 3.811572971e-15 | R142: -31.11111111 | S142: 11.2 | U142: 0 | V142: 0 | W142: 0 | X142: -0.001932699248 | Y142: 47.44105001 | Z142: 1.058647225e-15 | AA142: 87.34010044 | AB142: 11.2 | AC142: 3.8483375e-05
A143: 11.2 | E143: 3.71486587 | F143: -3.71486587 | G143: 4.551262181e-16 | H143: 1.170696813 | M143: 47.44105001 | N143: 1.058647225e-15 | O143: 1.058647225e-15 | P143: 87.34010044 | Q143: 3.845604872e-15 | R143: -31.38888889 | S143: 11.3 | U143: 0 | V143: 0 | W143: 0 | X143: -0.002147335302 | Y143: 47.44105001 | Z143: 1.058647225e-15 | AA143: 87.34010044 | AB143: 11.3 | AC143: 4.223572222e-05
A144: 11.3 | E144: 3.71486587 | F144: -3.71486587 | G144: 4.551262181e-16 | H144: 1.170696813 | M144: 47.44105001 | N144: 1.058647225e-15 | O144: 1.058647225e-15 | P144: 87.34010044 | Q144: 3.879636774e-15 | R144: -31.66666667 | S144: 11.4 | U144: 0 | V144: 0 | W144: 0 | X144: -0.002375605899 | Y144: 47.44105001 | Z144: 1.058647225e-15 | AA144: 87.34010044 | AB144: 11.4 | AC144: 4.616259722e-05
A145: 11.4 | E145: 3.71486587 | F145: -3.71486587 | G145: 4.551262181e-16 | H145: 1.170696813 | M145: 47.44105001 | N145: 1.058647225e-15 | O145: 1.058647225e-15 | P145: 87.34010044 | Q145: 3.913668675e-15 | R145: -31.94444444 | S145: 11.5 | U145: 0 | V145: 0 | W145: 0 | X145: -0.002617835673 | Y145: 47.44105001 | Z145: 1.058647225e-15 | AA145: 87.34010044 | AB145: 11.5 | AC145: 5.0264e-05
A146: 11.5 | E146: 3.71486587 | F146: -3.71486587 | G146: 4.551262181e-16 | H146: 1.170696813 | M146: 47.44105001 | N146: 1.058647225e-15 | O146: 1.058647225e-15 | P146: 87.34010044 | Q146: 3.947700577e-15 | R146: -32.22222222 | S146: 11.6 | U146: 0 | V146: 0 | W146: 0 | X146: -0.002874349253 | Y146: 47.44105001 | Z146: 1.058647225e-15 | AA146: 87.34010044 | AB146: 11.6 | AC146: 5.453993056e-05
A147: 11.6 | E147: 3.71486587 | F147: -3.71486587 | G147: 4.551262181e-16 | H147: 1.170696813 | M147: 47.44105001 | N147: 1.058647225e-15 | O147: 1.058647225e-15 | P147: 87.34010044 | Q147: 3.981732478e-15 | R147: -32.5 | S147: 11.7 | U147: 0 | V147: 0 | W147: 0 | X147: -0.003145471272 | Y147: 47.44105001 | Z147: 1.058647225e-15 | AA147: 87.34010044 | AB147: 11.7 | AC147: 5.899038889e-05
A148: 11.7 | E148: 3.71486587 | F148: -3.71486587 | G148: 4.551262181e-16 | H148: 1.170696813 | M148: 47.44105001 | N148: 1.058647225e-15 | O148: 1.058647225e-15 | P148: 87.34010044 | Q148: 4.01576438e-15 | R148: -32.77777778 | S148: 11.8 | U148: 0 | V148: 0 | W148: 0 | X148: -0.003431526361 | Y148: 47.44105001 | Z148: 1.058647225e-15 | AA148: 87.34010044 | AB148: 11.8 | AC148: 6.3615375e-05
A149: 11.8 | E149: 3.71486587 | F149: -3.71486587 | G149: 4.551262181e-16 | H149: 1.170696813 | M149: 47.44105001 | N149: 1.058647225e-15 | O149: 1.058647225e-15 | P149: 87.34010044 | Q149: 4.049796282e-15 | R149: -33.05555556 | S149: 11.9 | U149: 0 | V149: 0 | W149: 0 | X149: -0.00373283915 | Y149: 47.44105001 | Z149: 1.058647225e-15 | AA149: 87.34010044 | AB149: 11.9 | AC149: 6.841488889e-05
A150: 11.9 | E150: 3.71486587 | F150: -3.71486587 | G150: 4.551262181e-16 | H150: 1.170696813 | M150: 47.44105001 | N150: 1.058647225e-15 | O150: 1.058647225e-15 | P150: 87.34010044 | Q150: 4.083828183e-15 | R150: -33.33333333 | S150: 12 | U150: 0 | V150: 0 | W150: 0 | X150: -0.004049734271 | Y150: 47.44105001 | Z150: 1.058647225e-15 | AA150: 87.34010044 | AB150: 12 | AC150: 7.338893056e-05
A151: 12 | E151: 3.71486587 | F151: -3.71486587 | G151: 4.551262181e-16 | H151: 1.170696813 | M151: 47.44105001 | N151: 1.058647225e-15 | O151: 1.058647225e-15 | P151: 87.34010044 | Q151: 4.117860085e-15 | R151: -33.61111111 | S151: 12.1 | U151: 0 | V151: 0 | W151: 0 | X151: -0.004382536355 | Y151: 47.44105001 | Z151: 1.058647225e-15 | AA151: 87.34010044 | AB151: 12.1 | AC151: 7.85375e-05
A152: 12.1 | E152: 3.71486587 | F152: -3.71486587 | G152: 4.551262181e-16 | H152: 1.170696813 | M152: 47.44105001 | N152: 1.058647225e-15 | O152: 1.058647225e-15 | P152: 87.34010044 | Q152: 4.151891986e-15 | R152: -33.88888889 | S152: 12.2 | U152: 0 | V152: 0 | W152: 0 | X152: -0.004731570034 | Y152: 47.44105001 | Z152: 1.058647225e-15 | AA152: 87.34010044 | AB152: 12.2 | AC152: 8.386059722e-05
A153: 12.2 | E153: 3.71486587 | F153: -3.71486587 | G153: 4.551262181e-16 | H153: 1.170696813 | M153: 47.44105001 | N153: 1.058647225e-15 | O153: 1.058647225e-15 | P153: 87.34010044 | Q153: 4.185923888e-15 | R153: -34.16666667 | S153: 12.3 | U153: 0 | V153: 0 | W153: 0 | X153: -0.005097159939 | Y153: 47.44105001 | Z153: 1.058647225e-15 | AA153: 87.34010044 | AB153: 12.3 | AC153: 8.935822222e-05
A154: 12.3 | E154: 3.71486587 | F154: -3.71486587 | G154: 4.551262181e-16 | H154: 1.170696813 | M154: 47.44105001 | N154: 1.058647225e-15 | O154: 1.058647225e-15 | P154: 87.34010044 | Q154: 4.219955789e-15 | R154: -34.44444444 | S154: 12.4 | U154: 0 | V154: 0 | W154: 0 | X154: -0.0054796307 | Y154: 47.44105001 | Z154: 1.058647225e-15 | AA154: 87.34010044 | AB154: 12.4 | AC154: 9.5030375e-05
A155: 12.4 | E155: 3.71486587 | F155: -3.71486587 | G155: 4.551262181e-16 | H155: 1.170696813 | M155: 47.44105001 | N155: 1.058647225e-15 | O155: 1.058647225e-15 | P155: 87.34010044 | Q155: 4.253987691e-15 | R155: -34.72222222 | S155: 12.5 | U155: 0 | V155: 0 | W155: 0 | X155: -0.00587930695 | Y155: 47.44105001 | Z155: 1.058647225e-15 | AA155: =IF(X155<=0,P155,0) -> 87.34010044 | AB155: 12.5 | AC155: 0.0001008770556
A156: 12.5 | E156: 3.71486587 | F156: -3.71486587 | G156: 4.551262181e-16 | H156: 1.170696813 | M156: 47.44105001 | N156: 1.058647225e-15 | O156: 1.058647225e-15 | P156: 87.34010044 | Q156: 4.288019592e-15 | R156: -35 | S156: 12.6 | U156: 0 | V156: 0 | W156: 0 | X156: -0.006296513319 | Y156: 47.44105001 | Z156: 1.058647225e-15 | AA156: 87.34010044 | AB156: 12.6 | AC156: 0.0001068982639
A157: 12.6 | E157: 3.71486587 | F157: -3.71486587 | G157: 4.551262181e-16 | H157: 1.170696813 | M157: 47.44105001 | N157: 1.058647225e-15 | O157: 1.058647225e-15 | P157: 87.34010044 | Q157: 4.322051494e-15 | R157: -35.27777778 | S157: 12.7 | U157: 0 | V157: 0 | W157: 0 | X157: -0.006731574439 | Y157: 47.44105001 | Z157: 1.058647225e-15 | AA157: 87.34010044 | AB157: 12.7 | AC157: 0.000113094
A158: 12.7 | E158: 3.71486587 | F158: -3.71486587 | G158: 4.551262181e-16 | H158: 1.170696813 | M158: 47.44105001 | N158: 1.058647225e-15 | O158: 1.058647225e-15 | P158: 87.34010044 | Q158: 4.356083395e-15 | R158: -35.55555556 | S158: 12.8 | U158: 0 | V158: 0 | W158: 0 | X158: -0.007184814941 | Y158: 47.44105001 | Z158: 1.058647225e-15 | AA158: 87.34010044 | AB158: 12.8 | AC158: 0.0001194642639
A159: 12.8 | E159: 3.71486587 | F159: -3.71486587 | G159: 4.551262181e-16 | H159: 1.170696813 | I159: =SQRT(((B159-F159)^2)+((C159-G159)^2)+(D159^2)) ->  | M159: 47.44105001 | N159: 1.058647225e-15 | O159: =ABS(N159) -> 1.058647225e-15 | P159: 87.34010044 | Q159: 4.390115297e-15 | R159: -35.83333333 | S159: 12.9 | U159: 0 | V159: 0 | W159: 0 | X159: -0.007656559456 | Y159: 47.44105001 | Z159: 1.058647225e-15 | AA159: 87.34010044 | AB159: 12.9 | AC159: 0.0001260090556
A160: =A159+$B$22 -> 12.9 | B160: =B159+(J159*$B$22) ->  | C160: =C159+(K159*$B$22) ->  | D160: =D159+(L159*$B$22) ->  | E160: =IF($B$13=2,$B$23*((0.1036*LN(ABS(P159+1)))+0.8731),IF($B$13=3,$B$23*((0.139*LN(ABS(P159+1)))+0.7503),$B$23)) -> 3.71486587 | F160: =E160*COS(RADIANS($B$10)) -> -3.71486587 | G160: =E160*SIN(RADIANS($B$10)) -> 4.551262181e-16 | H160: =1.22*EXP(-0.0001065*(P159+$B$12)) -> 1.170696813 | M160: =IF(X160>0,IF(P159<=Param_1,M159,M159+(B161*$B$22)),M159) -> 47.44105001 | N160: =IF(X160>0,IF(P159<=Param_1,N159,N159+(C161*$B$22)),N159) -> 1.058647225e-15 | O160: 1.058647225e-15 | P160: =IF(X160>0,IF(P159<Param_1,P159,P159+(D161*$B$22)),P159) -> 87.34010044 | Q160: =IF(P159<Param_1,Q159,A161*$B$23*SIN(RADIANS($B$10))) -> 4.424147198e-15 | R160: =IF(P159<Param_1,R159,A161*$B$23*COS(RADIANS($B$10))) -> -36.11111111 | S160: =IF(P159<Param_1,S159,A161) -> 13 | U160: 0 | V160: 0 | W160: 0 | X160: -0.008147132615 | Y160: =IF(X160<=0,M160,0) -> 47.44105001 | Z160: =IF(X160<=0,N160,0) -> 1.058647225e-15 | AA160: 87.34010044 | AB160: =IF(X160<=0,S160,3000) -> 13 | AC160: =IF($B$24="S",$B$20,3.1415*(($B$18*0.0005)-($B$26*A160))^2) -> 0.000132728375
A161: 13 | E161: 3.71486587 | F161: -3.71486587 | G161: 4.551262181e-16 | H161: 1.170696813 | J161: =-0.5*H161*I161*AC161*$B$17*(B161-F161)/X161 ->  | K161: =-0.5*H161*I161*AC161*$B$17*(C161-G161)/X161 ->  | L161: =(-0.5*H161*AC161*I161*$B$17*D161/X161)-$B$21 ->  | M161: 47.44105001 | N161: 1.058647225e-15 | O161: 1.058647225e-15 | P161: 87.34010044 | Q161: 4.4581791e-15 | R161: -36.38888889 | S161: 13.1 | T161: =IF(D161<0,T160,A162) ->  | U161: =IF(ROUND(A161*10,3)=$B$14*10,M161,0) -> 0 | V161: =IF(ROUND(A161*10,3)=$B$14*10,N161,0) -> 0 | W161: =IF(ROUND(A161*10,3)=$B$14*10,P161,0) -> 0 | X161: -0.00865685905 | Y161: 47.44105001 | Z161: 1.058647225e-15 | AA161: 87.34010044 | AB161: 13.1 | AC161: 0.0001396222222
A162: 13.1 | E162: 3.71486587 | F162: -3.71486587 | G162: 4.551262181e-16 | H162: 1.170696813 | M162: 47.44105001 | N162: 1.058647225e-15 | O162: 1.058647225e-15 | P162: 87.34010044 | Q162: 4.492211001e-15 | R162: -36.66666667 | S162: 13.2 | U162: 0 | V162: 0 | W162: 0 | X162: -0.009186063392 | Y162: 47.44105001 | Z162: 1.058647225e-15 | AA162: 87.34010044 | AB162: 13.2 | AC162: 0.0001466905972
A163: 13.2 | E163: 3.71486587 | F163: -3.71486587 | G163: 4.551262181e-16 | H163: 1.170696813 | M163: 47.44105001 | N163: 1.058647225e-15 | O163: 1.058647225e-15 | P163: 87.34010044 | Q163: 4.526242903e-15 | R163: -36.94444444 | S163: 13.3 | U163: 0 | V163: 0 | W163: 0 | X163: -0.009735070273 | Y163: 47.44105001 | Z163: 1.058647225e-15 | AA163: 87.34010044 | AB163: 13.3 | AC163: 0.0001539335
A164: 13.3 | E164: 3.71486587 | F164: -3.71486587 | G164: 4.551262181e-16 | H164: 1.170696813 | M164: 47.44105001 | N164: 1.058647225e-15 | O164: 1.058647225e-15 | P164: 87.34010044 | Q164: 4.560274804e-15 | R164: -37.22222222 | S164: 13.4 | U164: 0 | V164: 0 | W164: 0 | X164: -0.01030420432 | Y164: 47.44105001 | Z164: 1.058647225e-15 | AA164: 87.34010044 | AB164: 13.4 | AC164: 0.0001613509306
A165: 13.4 | E165: 3.71486587 | F165: -3.71486587 | G165: 4.551262181e-16 | H165: 1.170696813 | M165: 47.44105001 | N165: 1.058647225e-15 | O165: 1.058647225e-15 | P165: 87.34010044 | Q165: 4.594306706e-15 | R165: -37.5 | S165: 13.5 | U165: 0 | V165: 0 | W165: 0 | X165: -0.01089379017 | Y165: 47.44105001 | Z165: 1.058647225e-15 | AA165: 87.34010044 | AB165: 13.5 | AC165: 0.0001689428889
A166: 13.5 | E166: 3.71486587 | F166: -3.71486587 | G166: 4.551262181e-16 | H166: 1.170696813 | M166: 47.44105001 | N166: 1.058647225e-15 | O166: 1.058647225e-15 | P166: 87.34010044 | Q166: 4.628338607e-15 | R166: -37.77777778 | S166: 13.6 | U166: 0 | V166: 0 | W166: 0 | X166: -0.01150415245 | Y166: 47.44105001 | Z166: 1.058647225e-15 | AA166: 87.34010044 | AB166: 13.6 | AC166: 0.000176709375
A167: 13.6 | E167: 3.71486587 | F167: -3.71486587 | G167: 4.551262181e-16 | H167: 1.170696813 | M167: 47.44105001 | N167: 1.058647225e-15 | O167: 1.058647225e-15 | P167: 87.34010044 | Q167: 4.662370509e-15 | R167: -38.05555556 | S167: 13.7 | U167: 0 | V167: 0 | W167: 0 | X167: -0.0121356158 | Y167: 47.44105001 | Z167: 1.058647225e-15 | AA167: 87.34010044 | AB167: 13.7 | AC167: 0.0001846503889
A168: 13.7 | E168: 3.71486587 | F168: -3.71486587 | G168: 4.551262181e-16 | H168: 1.170696813 | M168: 47.44105001 | N168: 1.058647225e-15 | O168: 1.058647225e-15 | P168: 87.34010044 | Q168: 4.69640241e-15 | R168: -38.33333333 | S168: 13.8 | U168: 0 | V168: 0 | W168: 0 | X168: -0.01278850484 | Y168: 47.44105001 | Z168: 1.058647225e-15 | AA168: 87.34010044 | AB168: 13.8 | AC168: 0.0001927659306
A169: 13.8 | E169: 3.71486587 | F169: -3.71486587 | G169: 4.551262181e-16 | H169: 1.170696813 | M169: 47.44105001 | N169: 1.058647225e-15 | O169: 1.058647225e-15 | P169: 87.34010044 | Q169: 4.730434312e-15 | R169: -38.61111111 | S169: 13.9 | U169: 0 | V169: 0 | W169: 0 | X169: -0.0134631442 | Y169: 47.44105001 | Z169: 1.058647225e-15 | AA169: 87.34010044 | AB169: 13.9 | AC169: 0.000201056
A170: 13.9 | E170: 3.71486587 | F170: -3.71486587 | G170: 4.551262181e-16 | H170: 1.170696813 | M170: 47.44105001 | N170: 1.058647225e-15 | O170: 1.058647225e-15 | P170: 87.34010044 | Q170: 4.764466214e-15 | R170: -38.88888889 | S170: 14 | U170: 0 | V170: 0 | W170: 0 | X170: -0.01415985853 | Y170: 47.44105001 | Z170: 1.058647225e-15 | AA170: 87.34010044 | AB170: 14 | AC170: 0.0002095205972
A171: 14 | E171: 3.71486587 | F171: -3.71486587 | G171: 4.551262181e-16 | H171: 1.170696813 | M171: 47.44105001 | N171: 1.058647225e-15 | O171: 1.058647225e-15 | P171: 87.34010044 | Q171: 4.798498115e-15 | R171: -39.16666667 | S171: 14.1 | U171: 0 | V171: 0 | W171: 0 | X171: -0.01487897244 | Y171: 47.44105001 | Z171: 1.058647225e-15 | AA171: 87.34010044 | AB171: 14.1 | AC171: 0.0002181597222
A172: 14.1 | E172: 3.71486587 | F172: -3.71486587 | G172: 4.551262181e-16 | H172: 1.170696813 | M172: 47.44105001 | N172: 1.058647225e-15 | O172: 1.058647225e-15 | P172: 87.34010044 | Q172: 4.832530017e-15 | R172: -39.44444444 | S172: 14.2 | U172: 0 | V172: 0 | W172: 0 | X172: -0.01562081056 | Y172: 47.44105001 | Z172: 1.058647225e-15 | AA172: 87.34010044 | AB172: 14.2 | AC172: 0.000226973375
A173: 14.2 | E173: 3.71486587 | F173: -3.71486587 | G173: 4.551262181e-16 | H173: 1.170696813 | M173: 47.44105001 | N173: 1.058647225e-15 | O173: 1.058647225e-15 | P173: 87.34010044 | Q173: 4.866561918e-15 | R173: -39.72222222 | S173: 14.3 | U173: 0 | V173: 0 | W173: 0 | X173: -0.01638569754 | Y173: 47.44105001 | Z173: 1.058647225e-15 | AA173: 87.34010044 | AB173: 14.3 | AC173: 0.0002359615556
A174: 14.3 | E174: 3.71486587 | F174: -3.71486587 | G174: 4.551262181e-16 | H174: 1.170696813 | M174: 47.44105001 | N174: 1.058647225e-15 | O174: 1.058647225e-15 | P174: 87.34010044 | Q174: 4.90059382e-15 | R174: -40 | S174: 14.4 | U174: 0 | V174: 0 | W174: 0 | X174: -0.01717395801 | Y174: 47.44105001 | Z174: 1.058647225e-15 | AA174: 87.34010044 | AB174: 14.4 | AC174: 0.0002451242639
A175: 14.4 | E175: 3.71486587 | F175: -3.71486587 | G175: 4.551262181e-16 | H175: 1.170696813 | M175: 47.44105001 | N175: 1.058647225e-15 | O175: 1.058647225e-15 | P175: 87.34010044 | Q175: 4.934625721e-15 | R175: -40.27777778 | S175: 14.5 | U175: 0 | V175: 0 | W175: 0 | X175: -0.01798591658 | Y175: 47.44105001 | Z175: 1.058647225e-15 | AA175: 87.34010044 | AB175: 14.5 | AC175: 0.0002544615
A176: 14.5 | E176: 3.71486587 | F176: -3.71486587 | G176: 4.551262181e-16 | H176: 1.170696813 | M176: 47.44105001 | N176: 1.058647225e-15 | O176: 1.058647225e-15 | P176: 87.34010044 | Q176: 4.968657623e-15 | R176: -40.55555556 | S176: 14.6 | U176: 0 | V176: 0 | W176: 0 | X176: -0.0188218979 | Y176: 47.44105001 | Z176: 1.058647225e-15 | AA176: 87.34010044 | AB176: 14.6 | AC176: 0.0002639732639
A177: 14.6 | E177: 3.71486587 | F177: -3.71486587 | G177: 4.551262181e-16 | H177: 1.170696813 | M177: 47.44105001 | N177: 1.058647225e-15 | O177: 1.058647225e-15 | P177: 87.34010044 | Q177: 5.002689524e-15 | R177: -40.83333333 | S177: 14.7 | U177: 0 | V177: 0 | W177: 0 | X177: -0.01968222659 | Y177: 47.44105001 | Z177: 1.058647225e-15 | AA177: 87.34010044 | AB177: 14.7 | AC177: 0.0002736595556
A178: 14.7 | E178: 3.71486587 | F178: -3.71486587 | G178: 4.551262181e-16 | H178: 1.170696813 | M178: 47.44105001 | N178: 1.058647225e-15 | O178: 1.058647225e-15 | P178: 87.34010044 | Q178: 5.036721426e-15 | R178: -41.11111111 | S178: 14.8 | U178: 0 | V178: 0 | W178: 0 | X178: -0.02056722729 | Y178: 47.44105001 | Z178: 1.058647225e-15 | AA178: 87.34010044 | AB178: 14.8 | AC178: 0.000283520375
A179: 14.8 | E179: 3.71486587 | F179: -3.71486587 | G179: 4.551262181e-16 | H179: 1.170696813 | M179: 47.44105001 | N179: 1.058647225e-15 | O179: 1.058647225e-15 | P179: 87.34010044 | Q179: 5.070753327e-15 | R179: -41.38888889 | S179: 14.9 | U179: 0 | V179: 0 | W179: 0 | X179: -0.02147722463 | Y179: 47.44105001 | Z179: 1.058647225e-15 | AA179: 87.34010044 | AB179: 14.9 | AC179: 0.0002935557222
A180: 14.9 | E180: 3.71486587 | F180: -3.71486587 | G180: 4.551262181e-16 | H180: 1.170696813 | M180: 47.44105001 | N180: 1.058647225e-15 | O180: 1.058647225e-15 | P180: 87.34010044 | Q180: 5.104785229e-15 | R180: -41.66666667 | S180: 15 | U180: 0 | V180: 0 | W180: 0 | X180: -0.02241254324 | Y180: 47.44105001 | Z180: 1.058647225e-15 | AA180: 87.34010044 | AB180: 15 | AC180: 0.0003037655972
A181: 15 | E181: 3.71486587 | F181: -3.71486587 | G181: 4.551262181e-16 | H181: 1.170696813 | M181: 47.44105001 | N181: 1.058647225e-15 | O181: 1.058647225e-15 | P181: 87.34010044 | Q181: 5.13881713e-15 | R181: -41.94444444 | S181: 15.1 | U181: 0 | V181: 0 | W181: 0 | X181: -0.02337350775 | Y181: 47.44105001 | Z181: 1.058647225e-15 | AA181: 87.34010044 | AB181: 15.1 | AC181: 0.00031415
A182: 15.1 | E182: 3.71486587 | F182: -3.71486587 | G182: 4.551262181e-16 | H182: 1.170696813 | M182: 47.44105001 | N182: 1.058647225e-15 | O182: 1.058647225e-15 | P182: 87.34010044 | Q182: 5.172849032e-15 | R182: -42.22222222 | S182: 15.2 | U182: 0 | V182: 0 | W182: 0 | X182: -0.02436044279 | Y182: 47.44105001 | Z182: 1.058647225e-15 | AA182: 87.34010044 | AB182: 15.2 | AC182: 0.0003247089306
A183: 15.2 | E183: 3.71486587 | F183: -3.71486587 | G183: 4.551262181e-16 | H183: 1.170696813 | M183: 47.44105001 | N183: 1.058647225e-15 | O183: 1.058647225e-15 | P183: 87.34010044 | Q183: 5.206880933e-15 | R183: -42.5 | S183: 15.3 | U183: 0 | V183: 0 | W183: 0 | X183: -0.02537367299 | Y183: 47.44105001 | Z183: 1.058647225e-15 | AA183: 87.34010044 | AB183: 15.3 | AC183: 0.0003354423889
A184: 15.3 | E184: 3.71486587 | F184: -3.71486587 | G184: 4.551262181e-16 | H184: 1.170696813 | M184: 47.44105001 | N184: 1.058647225e-15 | O184: 1.058647225e-15 | P184: 87.34010044 | Q184: 5.240912835e-15 | R184: -42.77777778 | S184: 15.4 | U184: 0 | V184: 0 | W184: 0 | X184: -0.02641352299 | Y184: 47.44105001 | Z184: 1.058647225e-15 | AA184: 87.34010044 | AB184: 15.4 | AC184: 0.000346350375
A185: 15.4 | E185: 3.71486587 | F185: -3.71486587 | G185: 4.551262181e-16 | H185: 1.170696813 | M185: 47.44105001 | N185: 1.058647225e-15 | O185: 1.058647225e-15 | P185: 87.34010044 | Q185: 5.274944736e-15 | R185: -43.05555556 | S185: 15.5 | U185: 0 | V185: 0 | W185: 0 | X185: -0.02748031741 | Y185: 47.44105001 | Z185: 1.058647225e-15 | AA185: 87.34010044 | AB185: 15.5 | AC185: 0.0003574328889
A186: 15.5 | E186: 3.71486587 | F186: -3.71486587 | G186: 4.551262181e-16 | H186: 1.170696813 | M186: 47.44105001 | N186: 1.058647225e-15 | O186: 1.058647225e-15 | P186: 87.34010044 | Q186: 5.308976638e-15 | R186: -43.33333333 | S186: 15.6 | U186: 0 | V186: 0 | W186: 0 | X186: -0.02857438089 | Y186: 47.44105001 | Z186: 1.058647225e-15 | AA186: 87.34010044 | AB186: 15.6 | AC186: 0.0003686899306
A187: 15.6 | E187: 3.71486587 | F187: -3.71486587 | G187: 4.551262181e-16 | H187: 1.170696813 | M187: 47.44105001 | N187: 1.058647225e-15 | O187: 1.058647225e-15 | P187: 87.34010044 | Q187: 5.343008539e-15 | R187: -43.61111111 | S187: 15.7 | U187: 0 | V187: 0 | W187: 0 | X187: -0.02969603806 | Y187: 47.44105001 | Z187: 1.058647225e-15 | AA187: 87.34010044 | AB187: 15.7 | AC187: 0.0003801215
A188: 15.7 | E188: 3.71486587 | F188: -3.71486587 | G188: 4.551262181e-16 | H188: 1.170696813 | M188: 47.44105001 | N188: 1.058647225e-15 | O188: 1.058647225e-15 | P188: 87.34010044 | Q188: 5.377040441e-15 | R188: -43.88888889 | S188: 15.8 | U188: 0 | V188: 0 | W188: 0 | X188: -0.03084561355 | Y188: 47.44105001 | Z188: 1.058647225e-15 | AA188: 87.34010044 | AB188: 15.8 | AC188: 0.0003917275972
A189: 15.8 | E189: 3.71486587 | F189: -3.71486587 | G189: 4.551262181e-16 | H189: 1.170696813 | M189: 47.44105001 | N189: 1.058647225e-15 | O189: 1.058647225e-15 | P189: 87.34010044 | Q189: 5.411072343e-15 | R189: -44.16666667 | S189: 15.9 | U189: 0 | V189: 0 | W189: 0 | X189: -0.03202343198 | Y189: 47.44105001 | Z189: 1.058647225e-15 | AA189: 87.34010044 | AB189: 15.9 | AC189: 0.0004035082222
A190: 15.9 | E190: 3.71486587 | F190: -3.71486587 | G190: 4.551262181e-16 | H190: 1.170696813 | M190: 47.44105001 | N190: 1.058647225e-15 | O190: 1.058647225e-15 | P190: 87.34010044 | Q190: 5.445104244e-15 | R190: -44.44444444 | S190: 16 | U190: 0 | V190: 0 | W190: 0 | X190: =IF($B$24="C",IF((3.14159265*1860/4)*((0.001*$B$18)-(2*$B$26*A190))^2*((0.33333*0.001*$B$18)-(2*$B$26*A190))<0,(3.14159265*1860/4)*((0.001*$B$18)-(2*$B$26*A190))^2*((0.33333*0.001*$B$18)-(2*$B$26*A190)),(3.14159265*1860/4)*((0.001*$B$18)-(2*$B$26*A190))^2*((0.33333*0.001*$B$18)-(2*$B$26*A190))),$B$19) -> -0.033229818 | Y190: 47.44105001 | Z190: 1.058647225e-15 | AA190: 87.34010044 | AB190: 16 | AC190: 0.000415463375
A191: 16 | E191: 3.71486587 | F191: -3.71486587 | G191: 4.551262181e-16 | H191: 1.170696813 | M191: 47.44105001 | N191: 1.058647225e-15 | O191: 1.058647225e-15 | P191: 87.34010044 | Q191: 5.479136146e-15 | R191: -44.72222222 | S191: 16.1 | U191: 0 | V191: 0 | W191: 0 | X191: -0.03446509623 | Y191: 47.44105001 | Z191: 1.058647225e-15 | AA191: 87.34010044 | AB191: 16.1 | AC191: 0.0004275930556
A192: 16.1 | E192: 3.71486587 | F192: -3.71486587 | G192: 4.551262181e-16 | H192: 1.170696813 | M192: 47.44105001 | N192: 1.058647225e-15 | O192: 1.058647225e-15 | P192: 87.34010044 | Q192: 5.513168047e-15 | R192: -45 | S192: 16.2 | U192: 0 | V192: 0 | W192: 0 | X192: -0.03572959131 | Y192: 47.44105001 | Z192: 1.058647225e-15 | AA192: 87.34010044 | AB192: 16.2 | AC192: 0.0004398972639
A193: 16.2 | E193: 3.71486587 | F193: -3.71486587 | G193: 4.551262181e-16 | H193: 1.170696813 | M193: 47.44105001 | N193: 1.058647225e-15 | O193: 1.058647225e-15 | P193: 87.34010044 | Q193: 5.547199949e-15 | R193: -45.27777778 | S193: 16.3 | U193: 0 | V193: 0 | W193: 0 | X193: -0.03702362786 | Y193: 47.44105001 | Z193: 1.058647225e-15 | AA193: 87.34010044 | AB193: 16.3 | AC193: 0.000452376
A194: 16.3 | E194: 3.71486587 | F194: -3.71486587 | G194: 4.551262181e-16 | H194: 1.170696813 | M194: 47.44105001 | N194: 1.058647225e-15 | O194: 1.058647225e-15 | P194: 87.34010044 | Q194: 5.58123185e-15 | R194: -45.55555556 | S194: 16.4 | U194: 0 | V194: 0 | W194: 0 | X194: -0.03834753052 | Y194: 47.44105001 | Z194: 1.058647225e-15 | AA194: 87.34010044 | AB194: 16.4 | AC194: 0.0004650292639
A195: 16.4 | E195: 3.71486587 | F195: -3.71486587 | G195: 4.551262181e-16 | H195: 1.170696813 | M195: 47.44105001 | N195: 1.058647225e-15 | O195: 1.058647225e-15 | P195: 87.34010044 | Q195: 5.615263752e-15 | R195: -45.83333333 | S195: 16.5 | U195: 0 | V195: 0 | W195: 0 | X195: -0.03970162391 | Y195: 47.44105001 | Z195: 1.058647225e-15 | AA195: 87.34010044 | AB195: 16.5 | AC195: 0.0004778570556
A196: 16.5 | E196: 3.71486587 | F196: -3.71486587 | G196: 4.551262181e-16 | H196: 1.170696813 | M196: 47.44105001 | N196: 1.058647225e-15 | O196: 1.058647225e-15 | P196: 87.34010044 | Q196: 5.649295653e-15 | R196: -46.11111111 | S196: 16.6 | U196: 0 | V196: 0 | W196: 0 | X196: -0.04108623268 | Y196: 47.44105001 | Z196: 1.058647225e-15 | AA196: 87.34010044 | AB196: 16.6 | AC196: 0.000490859375
A197: 16.6 | E197: 3.71486587 | F197: -3.71486587 | G197: 4.551262181e-16 | H197: 1.170696813 | M197: 47.44105001 | N197: 1.058647225e-15 | O197: 1.058647225e-15 | P197: 87.34010044 | Q197: 5.683327555e-15 | R197: -46.38888889 | S197: 16.7 | U197: 0 | V197: 0 | W197: 0 | X197: -0.04250168144 | Y197: 47.44105001 | Z197: 1.058647225e-15 | AA197: 87.34010044 | AB197: 16.7 | AC197: 0.0005040362222
A198: 16.7 | E198: 3.71486587 | F198: -3.71486587 | G198: 4.551262181e-16 | H198: 1.170696813 | M198: 47.44105001 | N198: 1.058647225e-15 | O198: 1.058647225e-15 | P198: 87.34010044 | Q198: 5.717359456e-15 | R198: -46.66666667 | S198: 16.8 | U198: 0 | V198: 0 | W198: 0 | X198: -0.04394829484 | Y198: 47.44105001 | Z198: 1.058647225e-15 | AA198: 87.34010044 | AB198: 16.8 | AC198: 0.0005173875972
A199: 16.8 | E199: 3.71486587 | F199: -3.71486587 | G199: 4.551262181e-16 | H199: 1.170696813 | M199: 47.44105001 | N199: 1.058647225e-15 | O199: 1.058647225e-15 | P199: 87.34010044 | Q199: 5.751391358e-15 | R199: -46.94444444 | S199: 16.9 | U199: 0 | V199: 0 | W199: 0 | X199: -0.0454263975 | Y199: 47.44105001 | Z199: 1.058647225e-15 | AA199: 87.34010044 | AB199: 16.9 | AC199: 0.0005309135
A200: 16.9 | E200: 3.71486587 | F200: -3.71486587 | G200: 4.551262181e-16 | H200: 1.170696813 | M200: 47.44105001 | N200: 1.058647225e-15 | O200: 1.058647225e-15 | P200: 87.34010044 | Q200: 5.785423259e-15 | R200: -47.22222222 | S200: 17 | U200: 0 | V200: 0 | W200: 0 | X200: -0.04693631405 | Y200: 47.44105001 | Z200: 1.058647225e-15 | AA200: 87.34010044 | AB200: 17 | AC200: 0.0005446139306
... 59 more rows
